Workbook

Sheet Notice
B1: by | D1: Comparateur de stratégies | M1: version
Q2: Signalez un problèmes, un bug, des questions ? | V2: bigbang.contact@orange.fr
M3: =MAX(AD7:AD40) -> 6.1
C5: Vous devez vous assurer que les macros et le mode protégé sont activés. | AD5: Versions | AE5: Date | AF5: Mises à jour
C6: A l'ouverture d'Excel si les messages ci-dessous apparaissent, cliquez sur "activer le contenu" et "activer la modification".
AD7: 1.1 | AE7: 2021-04-25 | AF7: Amélioration calcul gestion fuel/autonomie (compte tour, éco fuel)
AD8: 2 | AE8: 2021-05-15 | AF8: Amélioration précision calcul temps moyen au tour
AD9: 2.1 | AE9: 2021-05-19 | AF9: Correction bug "erreur d'exécution 1004" des macros
AD10: 3 | AE10: 2021-05-22 | AF10: Amélioration visuelle du comparateur
C11: Une notice d'utilisation ci dessous et un tutoriel sur You Tube sont à votre disposition. | AD11: 4 | AE11: 2021-05-25 | AF11: Ajout listing des circuits et pistes avec menu déroulant dans strat 1
C12: pour une prise en main simple et rapide ! | AD12: 4 | AE12: 2021-05-29 | AF12: Ajout listing des voitures, catégories, marques, modèles
AD13: 4.1 | AE13: 2021-06-05 | AF13: Correction de la prise en compte des valeurs d'ajustement conduite strat 2 et 3
AD14: 5 | AE14: 2021-06-18 | AF14: Menus déroulants des catégories véh. associées à un listing des voitures correspondantes (strat 1)
C15: Accédez à l'application en cliquant sur le bouton si contre | AD15: 5.1 | AF15: Saisie automatique de la longueur et nombres de virage en fonction du circuit sélectionné
AD16: 5.2 | AF16: Conduite éco : possibilité d'affiner les temps et la conso fuel séparément entre chaque pit
AD17: 5.3 | AF17: Rajout des pneus super tendre parmi les choix de pneumatiques
AD18: 5.4 | AF18: Rajout alerte en cas de dépassement du temps de course ou du nombre de tours
C19: Images et liste de l'ensemble des circuits et des pistes GTS | AD19: 5.6 | AE19: 2021-07-24 | AF19: Confirmation oui/non des commandes supprimer / RAZ
AD20: 5.7 | AE20: 2021-07-30 | AF20: Message d'erreur si saisie des temps non conformes
AD21: 5.8 | AF21: Amélioration saisies niveau carburant, autonomie, arrêt au stand
C22: Liste des voitures par catégories, par marques et par modèles | AD22: 5.9 | AE22: 2021-08-02 | AF22: Message informatif sur les saisies strat 1
AD23: 5.91 | AE23: 2021-08-02 | AF23: Correction bug niveau refuel strat 2 et 3
AD24: 5.92 | AE24: 2021-08-07 | AF24: Correction erreur du cumul temps pit STRAT 2
C25: Les types de transmission sur GT Sport | AD25: 6 | AE25: 2021-09-02 | AF25: Ajout choix durée de vie des pneus et prise en compte des temps pour chaque stratégie
AD26: 6.1 | AE26: 2021-10-30 | AF26: Correction bug conduite éco
Q27: Adopter une stratégie de course ne vous fera pas gagner de temps, elle évitera de vous en faire perdre !
Q28: Une bonne stratégie vous permettra de prévoir des impondérables comme éviter une panne d'essence…
A29: NOTICE D'UTILISATION | Q29: ou de devoir rouler avec des gommes trop usées et perdre des secondes précieuses…
Q31: L'objectif de cette application est d'établir des valeurs de référence en matière de choix des pneus de leurs usures
Q32: et de la consommation d'essence afin de vous aider à mettre en place une stratégie de course sur mesure.
J33: Big-Bang CB - YouTube | Q33: vous aurez la possibilité d'élaborer des scénarios, de visualiser des indicateurs pour limiter et optimiser les arrêts
Q34: aux stands au strict nécessaire et de rester concentré sur votre course, votre conduite et les points de freinages…
Q36: Pendant la course restez fidèle à votre stratégie et ne vous faites pas influencer par celle des autres pilotes.
Q37: Une stratégie se bâtie en fonction de votre style de conduite et de vos temps chronos…
B38: Application pour l'élaboration et le choix de stratégie de course d'endurance | T38: Bon jeux !
B39: Utilisable pour des courses dont la durée est définie par une limite de temps où un nombre de tours,
B40: cet outil vous permet d'établir et comparer trois stratégies de courses différentes avec 5 possibilités de pits en tenant compte :
B41: § | C41: de 6 types de pneumatiques différents : super soft, soft, médium, hard, intermédiaire et pluie,
B42: § | C42: d'évaluer la durée de vie des pneus et la dégradation des temps chronos en analysant jusqu’à 3 essais chronos différents,
B43: § | C43: de comparer à l'aide d'un graphique l'incidences sur les temps des différents types de gommes par rapport à leur durée d'utilisation,
B44: § | C44: de modifier le niveau de fuel embarqué au départ de la course,
B45: § | C45: de calculer au plus juste le besoin de fuel à embarquer entre chaque PIT pour limiter les temps d'arrêt,
B46: § | C46: de calculer la dégradation des temps au tour du à la perte de puissance et le gain en tour en cas d'utilisation de l'éco fuel,
B47: § | C47: de prendre en compte les temps moyens au tour en fonction de la durée de vie des gommes sur chacune des stratégies,
B48: § | C48: de calculer très facilement les temps stops pits réels,
B49: § | C49: de la prise en compte précise des temps d'arrêts au stand en fonction des actions (échange pneumatiques et/ou refuel),
B50: § | C50: d'alertes si un type de pneu obligatoire n'est pas utilisé dans votre stratégie ou si le nombre de tours sélectionné dépasse l'autonomie,
B52: En préalable (valable pour l'ensemble de l'outil) :
B53: Les renseignements à indiquer dans les cellules fonds blancs | G53: facultatif | H53: sont à titre informatifs (pas d'obligation de saisie).
B55: Les renseignements à indiquer dans les cellules fonds jaunes | G55: obligatoire | H55: doivent être obligatoirement complétés.
B56: DONNEES COURSE : excepté la durée de vie des pneus, la saisie des données sur les interfaces stratégies 2 et 3 se fera automatiquement.
B57: Cliquez sur les boutons de commandes pour effacer vos données saisies, (course, chronos etc..)
B59: une confirmation vous sera demandée. ATTENTION si vous cliquer sur "oui" la suppression est irréversible.
B64: Pour accéder à l'application et aux données course cliquez sur le bouton de commande | K64: ci-dessus.
B66: Pour revenir à la notice cliquez sur le bouton de commande | H66: disponible dans toutes les interfaces de l'outil.
B68: En cliquant sur les cellules de saisie ou nominative
B69: vous pouvez obtenir des informations ou des explications
B70: complémentaires.
B77: ATTENTION si vous déverrouillez la protection des feuilles vous risquez de perdre des formules de calcul et d'altérer les résultats.
B78: 1) Saisie des données de la course :
B79: Saisie des données du comparateur sur l'interface "Strat 1" uniquement, section "Données course" :
B86: Les données, longueur circuit et nbr de virages s'incrémenteront automatiquement en fonction du circuit sélectionné dans le menu déroulant
B88: Exemple :
B94: Un préfiltre des modèles de voitures est réalisé en sélectionnant dans le menu déroulant la catégorie des véhicules.
B96: Exemple :
B103: 2) Saisie tours chronos :
B104: Pour noter vos chronos, une fenêtre de saisie s'ouvre lorsque vous cliquez sur le bouton | K104: (strat1 uniquement)
B105: Commencer par indiquer dans la colonne "pneumatique" les types de gomme autorisée pour votre course (3 possibilités).
B106: vous pouvez commencer vos essais pour recueillir les temps. 3 essais libres peuvent être renseignés
B107: vous devez saisir au minimum le meilleur temps ET un moins bon temps réalisés en condition de course en fonction des types de pneus *
B108: IMPORTANT | C108: il est indispensable de respecter la forme de saisie d'Excel pour entrer vos temps.
B109: Exemple : un temps d'1 minute 39 secondes et 5 dixièmes doit être saisie dans la cellule : | J109: min : sec, dixième | L109: 00:01:39.600
B110: Si le format de saisie n'est pas correct un message vous avertira. | J110: les dixièmes séparés par une virgule
J111: si vous avez 0 dixième taper tout de même ,0
B112: Fenêtre saisie des tours chronos :
I114: Les trois saisies entourées sont obligatoires
I115: Indiquer le nombre de tours réalisé avec le même train de pneus
I116: Détermine la durée de vie des gommes
J117: voir chap. 3, saisie des données pneus
I119: ex :
I120: 1ère colonne : meilleur temps en fonction du type de pneus
I121: 2ème colonne : moins bon temps réalisé au bout de 10 tours
I123: vous avez la possibilité d'indiquer pour mémoire la
I124: répartition des freins pour chacun des essais libres
B126: (*) saisir obligatoirement au moins les trois données entourées en rouge
B128: Cliquez sur le bouton pour accéder à de nombreux tours chronos de référence suivant les circuits et catégories de véhicules.
B129: Toutes les données renseignées, revenez ensuite sur la fenêtre STRAT 1
B130: 3) Saisie des données pneumatiques :
B131: La gestion des pneumatiques est cruciale. Comprendre la façon dont votre style de pilotage affecte la durée de vie des pneus et tout aussi important
B132: que d'engranger des tours rapides.
B133: Cette partie de l'application vous permet de comparer et de choisir la meilleure option parmi trois essais libres de durée de vie des pneus et cela pour
B134: chacun des types de pneus que vous utiliserez.
B140: Dans la partie des données course réservée aux pneumatiques :
B141: 1) Choisir à l'aide du menu déroulant "durée de vie" le seuil d'usure en nombre de tours. Le temps indiqué à gauche correspond au tour chronos moyen qui sera pris en compte dans votre stratégie. NB : Vous pouvez indiquer une durée de vie différente pour chacune des 3 stratégies.
B144: Une alerte dans la partie "tableau de bord", cellules "nombre de pits / tour" se déclenchera si vous saisissez un nombre de tours supérieur au seuil que vous aurez défini. (ce qui ne vous empêche pas de passer outre et de conserver le nbr de tours voulu)
B146: Exemple pour une usure max de 11 tours avec des S soft :
B147: Dans le tableau de bord : | C147: 11 tours, OK
C148: 12 tours, la cellule
C149: passe en "alerte
C150: orange"
B153: 2) Renseigner si la monte des types de pneus est libre ou obligatoire
B154: Si obligatoire (ex : pneus 3), une case apparait en dessous de "obligatoire", renseigner le nombre de tours imposé.
B155: Si vous omettez d'utiliser une gomme obligatoire dans votre stratégie un message d'alerte vous avertira
B156: La cellule "temps" vous indique le temps moyen au tour qui sera pris en compte dans le calcul de votre stratégie
B158: 4) Carburant / Autonomie :
B159: Dans la partie données course réservée au carburant :
B160: Les autonomies sont renseignées en nombre de tours et en %.
B161: l'autonomie indiquée dans le jeu réservoir plein peut augmenter fortement au fur et à mesure que le réservoir se vide et que la voiture gagne en poids.
B162: Le calculateur ne prend pas en compte ce facteur puisqu'il dépend également de votre conduite.
B163: Il est donc nécessaire de faire des essais pour vérifier l'autonomie réelle de votre voiture.
B164: Si vous indiquez dans le tableau de bord un nombre de tours supérieur à l'autonomie maxi que vous avez renseigné, un message d'alerte "dépasse"
B165: s'affiche dans la cellule autonomie du tableau de bord. Exemple ci-dessous (*)
G167: par défaut le réservoir indique 100 litres (identique à GT), modifier si nécessaire
F170: (*) Vous avez alors la possibilité, soit d'utiliser l'éco fuel (utilisation chapitre 7.1 ), pour rajouter de l'autonomie (exemple PIT 1) Soit de saisir un nombre de tours </= à l'autonomie max
F176: Les valeurs gains au tour peuvent êtres modifiées et ajustées à vos essais en cliquant sur la commande "Ajustement"
B180: 5) Calcul des temps d'arrêt au stand :
B181: Des temps sont indiqués par défaut mais en fonction des circuits et des mises à jour de Gran Turismo il est nécessaire de les réajuster.
B182: Dans tous les cas il sera judicieux de les vérifier. Le temps d'arrêt au stand est un facteur important dans une stratégie de course !
B183: Cliquez sur la commande "calcul tps arrêts" pour entrée les données nécessaires aux calculs des temps d'arrêts.
B188: Vous pouvez retrouver les infos, vitesse de ravitaillement dans le règlement des courses sur Gran Turismo et sur le site KUDOSPRIME (évents)
B189: Sur Gran Turismo dans le mode sport cliquer sur
B192: Mode de calcul utilisé pour l'application :
K193: Pour obtenir le temps t2 : faire un arrêt au stand avec changement de pneus et relever le temps d'arrêt affiché sur l'écran à la sortie du stand.
K197: Pour obtenir le temps t1 : chronométrer à l'aide d'une rediffusion le temps de passage entre l'entrée et la sortie des stands en condition course.
K201: Pour obtenir le tems de refuel par tour : faire un arrêt au stand avec changement de pneu et refuel complet. Relever le temps d'arrêt affiché sur l'écran à la sortie du stand et soustrayez ce temps à t1
B208: 6) Elaboration stratégie de course :
B209: A vous de jouer ! Avec l'aide d'une ou des trois interfaces, Strat 1, Strat 2 et Strat 3 :
C210: choisissez le nombre de tours entre chaque pit (le besoin en fuel se calculera automatiquement), et si vous dépassez la capacité
C211: maxi du réservoir un message d'alerte "dépasse" apparaitra.
C212: choisissez le ou les types de pneumatiques (dont vous aurez préalablement saisie les temps au tour).
B213: Saisie du tableau de bord - 2 à 3 informations à complèter à chaque pit :
B214: obligatoire | C214: 1) | D214: le nombre de tours entre chaque pit (ex: 5; 7; 10)
B215: obligatoire | C215: 2) | D215: le type de pneumatique (menu déroulant) soft, médium, hard
B216: si besoin | C216: 3) | D216: le niveau d'économiseur de fuel (ex : 2 si utilisation)
B217: Exemple tableau de bord :
B234: Interprétation du tableau de bord ci-dessus pour une autonomie de 15 tours :
B235: 1ère colonne, départ : pneus hard, absence de conduite éco, 15 tours à faire (utilisation conduite éco voir chapitre 7.1)
B236: 1er PIT à 15 tours : chausse de pneus médium, ravitaillement niveau jauge 100% (ou 15 tours). Utilisation éco fuel niv 2 pour faire 18 tours
C237: L'utilisation de la conduite éco fera perdre 8,3 sec en moyenne sur les 18 tours
B238: 2éme PIT au tour n°33 : chausse de pneus soft, ravitaillement niveau jauge 47% (ou 7 tours) absence de conduite éco
B239: Arrivée au tour 40 après 1h40 de course.
B240: IMPORTANT : | C240: Les types de pneus sélectionnés dans votre stratégie devront impérativement êtres associés à un temps chrono
C241: Auquel cas les données indiquées seront erronées.
B243: Informations complémentaires du tableau de bord :
B252: 7.1) Conduite économique :
B253: Comme dans le jeu GTS vous avez deux possibilités :
B254: 1) | C254: utilisez le compte tour comme indicateur de conduite économe en réalisant votre course ou une partie de votre course
C255: en limitant plus ou moins les tours moteur.
C256: trois choix simulés en terme de gain d'autonomie et de perte de temps sont proposés.
B257: Si vous adopter un mode de conduite qui consiste à changer les rapports de vitesses sans monter à fond dans les tours moteur :
B258: sélectionnez dans le menu déroulant "Conduite éco" :
B260: tr/mn 2/3 | C260: correspond à changer les rapports à 2/3 des leds du compte tour
B261: tr/mn1/2 | C261: correspond à changer les rapports à la moitié des leds du compte tour
B262: tr/mn 1/3 | C262: correspond à changer les rapports dès l'appariation 1ère led du compte tour
B263: Le calculateur simulera le gain d'autonomie et la perte de temps au km
B265: 2) | C265: utiliser l'économie de fuel disponible dans la fonction du jeu GTS :
B266: Les choix 2; 3; 4; 5 et 6 du menu déroulant correspondent au mode éco du jeux
B267: GTS qui consiste à la réduction plus ou moins importante de la puissance du véhicule.
B268: Le simulateur calculera le gain d'autonomie et la perte de temps au km
B269: suivant le niveau de réduction de la puissance moteur sélectionné (1 seul choix par PIT possible)
B271: 7.2) Ajustement autonomie et perte de temps en cas de conduite éco :
B272: Vous avez la possibilité en cliquant sur le bouton | G272: d'affiner l'autonomie et la perte de temps en fonction
B273: de vos essais en modifiant les valeurs par défaut du calculateur.
K275: La modification des valeurs "gain autonomie" agit sur la distance supplémentaire parcourue en fonction du niveau d'éco utilisé
K280: La modification des valeurs "réduction vitesse" agit sur la dégradation des temps en fonction de la vitesse
B288: 8) Comparateur de stratégie :
B290: Cliquez sur le bouton pour avoir accès au comparateur de stratégie.
B319: La meilleur stratégie sera en principe celle ou la majorité des indicateurs seront verts avec le temps moyen / tour le plus faible et l'indice de risque
B320: le moins élevé.
B321: Dans l'exemple ci-dessus, la stratégie 3 s'avère la mieux adaptée. Malgré un nombre de pits supérieur, le temps moyen/tour et l'indice de risque sont
B322: les plus faibles.
B323: Le fil conducteur pendant la course est d'être au plus près des temps de références moyens au tour en fonction des types de pneus.
B325: Imprimer le tableau de bord ou afficher le sur l'écran d'un ordinateur pour suivre votre stratégie pendant la course…
B326: Vous pourrez vous concentrer sur votre conduite et vos points de freinage sans perdre le fil de votre stratégie !
F328: Bon jeux !

Sheet Strat 1
A3: DONNEES COURSE | C3: Circuit / Piste : | I3: Longueur circuit : | K3: =VLOOKUP(E3,grille!K19:L102,2,FALSE) ->  | L3: corners : | M3: =VLOOKUP(E3,grille!K19:M102,3,FALSE) ->  | N3: Condition météo, horaire : | R3: 0h0 | X3: Menus
C5: Catégorie du véhicule : | I5: Durée de la course : | K5: 00:00:00 | L5: hr où | M5: 0 | N5: =K5+K68+K7 ->  | O5: Host salon :
C7: Modèle : | I7: Temps au tours : | K7: 00:00:40 | P7: Cast :
E10: condition usure | G10: pneus 1 | K10: pneus 2 | O10: pneus 3
C11: Pneumatique : | E11: =chronos!G7 -> X1 | G11: =chronos!C18 -> 0 | H11: Monte : | K11: =chronos!C19 -> 0 | L11: Monte : | O11: =chronos!C20 -> 0 | P11: Monte :
G12: durée de vie | H12: nbr tours | I12: 1 | K12: durée de vie | L12: nbr tours | M12: 1 | O12: durée de vie | P12: nbr tours | Q12: 1
E14: Trains de pneus : | H14: temps : | I14: ='nbr tours'!H10 ->  | L14: temps : | M14: ='nbr tours'!H11 ->  | P14: temps : | Q14: ='nbr tours'!H12 -> 
E17: condition fuel | I17: réservoir | K17: volume | M17: consommation | N17: taux/vol | Q17: volume | X17: S1
E18: =chronos!K7 -> X1 | F18: Fourchette autonomie max : | I18: 0 | J18: pour | K18: 100 | L18: soit | M18: ='ajust éco'!D9*'Strat 1'!K3 ->  | N18: =(M18*1)/K18 ->  | O18: Jauge initiale : | Q18: 100
U19: =M18 ->  | V19: =K3 -> 
O20: Litre/Sec | R20: 1 tour | U20: =K18/V22 -> 
C21: Temps d'arrêt au stand : | U21: L/KM
F22: ENTREE / SORTIE : | H22: =PIT!S9-PIT!S7 -> 1.1 | I22: ECHANGE PNEUS : | K22: =PIT!S7 -> 4.5 | L22: REFUEL vitesse de ravitaillement : | O22: =PIT!S17 -> 5.747126437 | Q22: 1 | R22: =PIT!S13 ->  | U22: =I18 -> 0 | V22: =K3*I18 -> 
V23: 1 plein
F24: Echange pneumatiques : | H24: =H22+K22 -> 5.6 | I24: Temps pneus + fuel : | K24: =H24+(I18*R22) ->  | L24: Nbr de tours total de refuel : | O24: =U42 ->  | P24: =O24*R22 -> 
B28: Tableau de bord stratégie de course | H28: 1 | I28: Indiquez la durée de vie des trains de pneus dans les données course | M28: Au moins un type de gomme obligatoire n'est pas utilisé | P28: Vous dépassez la durée de course de plus d'un tour
T29: total nbr de tours
B31: Nbr de tours / pit | E31: Départ | G31: Pit 1 | I31: Pit 2 | K31: Pit 3 | M31: Pit 4 | O31: Pit 5 | T31: =R31+P31+N31+L31+J31+H31+F31 -> 0
B32: Pertes de temps total : purge pénalité... | F32: =VLOOKUP(E39,'nbr tours'!$D$10:$E$12,2,FALSE) -> 0 | H32: =VLOOKUP(G39,'nbr tours'!$D$10:$E$12,2,FALSE) -> 0 | J32: =VLOOKUP(I39,'nbr tours'!$D$10:$E$12,2,FALSE) -> 0 | L32: =VLOOKUP(K39,'nbr tours'!$D$10:$E$12,2,FALSE) -> 0 | N32: =VLOOKUP(M39,'nbr tours'!$D$10:$E$12,2,FALSE) -> 0 | P32: =VLOOKUP(O39,'nbr tours'!$D$10:$E$12,2,FALSE) -> 0 | Q32: 7 | R32: =Q32*R33 -> 0
C33: 00:00:00 | F33: =F31*$K$3 ->  | G33: =IF(ISERROR(F32<F31)="VRAI","",F32<F31) -> FALSE | H33: =H31*$K$3 ->  | I33: =IF(ISERROR(H32<H31)="VRAI","",H32<H31) -> FALSE | J33: =J31*$K$3 ->  | K33: =IF(ISERROR(J32<J31)="VRAI","",J32<J31) -> FALSE | L33: =L31*$K$3 ->  | M33: =IF(ISERROR(L32<L31)="VRAI","",L32<L31) -> FALSE | N33: =N31*$K$3 ->  | O33: =IF(ISERROR(N32<N31)="VRAI","",N32<N31) -> FALSE | P33: =P31*$K$3 ->  | Q33: =IF(ISERROR(P32<P31)="VRAI","",P32<P31) -> FALSE | R33: =COUNTIF(G33:Q33,"VRAI") -> 0
B35: Tours & Temps | F35: =F31 -> 0 | G35: =F31*E72 ->  | H35: =F35+H31 -> 0 | I35: =(E72*H31)+G35 ->  | J35: =H35+J31 -> 0 | K35: =(J31*E72)+I35 ->  | L35: =J35+L31 -> 0 | M35: =L31*E72+K35 ->  | N35: =L35+N31 -> 0 | O35: =(N31*E72)+M35 ->  | P35: =N35+P31 -> 0 | Q35: =(P31*E72)+O35 ->  | R35: =P35+R31 -> 0
G37: =F31 -> 0 | I37: =H31+F31 -> 0 | K37: =J31+H31+F31 -> 0 | M37: =L31+J31+H31+F31 -> 0 | O37: =N31+L31+J31+H31+F31 -> 0 | Q37: Dépassement nbr de tours
B39: Type pneus
E41: =Q18 -> 100 | G41: =G43*100 ->  | I41: =I43*100 ->  | K41: =K43*100 ->  | M41: =M43*100 ->  | O41: =O43*100 ->  | T41: refuel en litres | U41: refuel en tours
B42: E42 conso L/km / F42 besoin | E42: =VLOOKUP(E45,'ajust éco'!$B$9:$G$17,3,FALSE) ->  | F42: =(F33*E42) ->  | G42: =VLOOKUP(G45,'ajust éco'!$B$9:$G$17,3,FALSE) ->  | H42: =(H33*G42) ->  | I42: =VLOOKUP(I45,'ajust éco'!$B$9:$G$17,3,FALSE) ->  | J42: =(J33*I42) ->  | K42: =VLOOKUP(K45,'ajust éco'!$B$9:$G$17,3,FALSE) ->  | L42: =(L33*K42) ->  | M42: =VLOOKUP(M45,'ajust éco'!$B$9:$G$17,3,FALSE) ->  | N42: =(N33*M42) ->  | O42: =VLOOKUP(O45,'ajust éco'!$B$9:$G$17,3,FALSE) ->  | P42: =(P33*O42) ->  | T42: =G41+I41+K41+M41+O41 ->  | U42: =T42/$M$18 -> 
B43: Jauge fuel | E43: =Q18/100 -> 1 | F43: =(E43*$I$18)/1 -> 0 | G43: =MIN(100%,(SUM(H31*$N$18))) ->  | H43: =(G43*$I$18)/1 ->  | I43: =MIN(100%,(SUM(J31*$N$18))) ->  | J43: =(I43*$I$18)/1 ->  | K43: =MIN(100%,(SUM(L31*$N$18))) ->  | L43: =(K43*$I$18)/1 ->  | M43: =MIN(100%,(SUM(N31*$N$18))) ->  | N43: =(M43*$I$18)/1 ->  | O43: =MIN(100%,(SUM(P31*$N$18))) ->  | P43: =(O43*$I$18)/1 ->  | Q43: cumul perte de temps conduite éco
B45: Eco fuel | Q45: =U52 -> 00:00:00
C47: conso L/tour avec éco | E47: =E42*$K$3 ->  | G47: =G42*$K$3 ->  | I47: =I42*$K$3 ->  | K47: =K42*$K$3 ->  | M47: =M42*$K$3 ->  | O47: =O42*$K$3 -> 
C48: calcul perte temps | E48: =VLOOKUP(E45,'ajust éco'!$B$9:$L$17,11,"faux") -> 0 | G48: =VLOOKUP(G45,'ajust éco'!$B$9:$L$17,11,"faux") -> 0 | I48: =VLOOKUP(I45,'ajust éco'!$B$9:$L$17,11,"faux") -> 0 | K48: =VLOOKUP(K45,'ajust éco'!$B$9:$L$17,11,"faux") -> 0 | M48: =VLOOKUP(M45,'ajust éco'!$B$9:$L$17,11,"faux") -> 0 | O48: =VLOOKUP(O45,'ajust éco'!$B$9:$L$17,11,"faux") -> 0
E49: =E41/E47 ->  | G49: =G41/G47 ->  | I49: =I41/I47 ->  | K49: =K41/K47 ->  | M49: =M41/M47 ->  | O49: =O41/O47 -> 
B50: Autonomie | E50: =IF(F42>E41+1,"dépasse",E49) ->  | G50: =IF(H42>G41+1,"dépasse",G49) ->  | I50: =IF(J42>I41+1,"dépasse",I49) ->  | K50: =IF(L42>K41+1,"dépasse",K49) ->  | M50: =IF(N42>M41+1,"dépasse",M49) ->  | O50: =IF(P42>O41+1,"dépasse",O49) ->  | U50: somme perte de tps utilisation éco
U51: hr/mn/sec | V51: 1/100 hr
C52: Calcul augmentation tps/tour en fonction de la conduite | E52: =E48*F31 -> 0 | G52: =G48*H31 -> 0 | I52: =I48*J31 -> 0 | K52: =K48*L31 -> 0 | M52: =M48*N31 -> 0 | O52: =O48*P31 -> 0 | Q52: nbr tours /type pneus | R52: chronos | T52: tps total / type pneu | U52: =V52/86400 -> 00:00:00 | V52: =E52+G52+I52+K52+M52+O52 -> 0
C53: S soft | E53: =SUMIF(E39,"S soft",F31) -> 0 | G53: =SUMIF(G39,"S soft",H31) -> 0 | H53: =IF(G53>0,1,0) -> 0 | I53: =SUMIF(I39,"S soft",J31) -> 0 | J53: =IF(I53>0,1,0) -> 0 | K53: =SUMIF(K39,"S soft",L31) -> 0 | L53: =IF(K53>0,1,0) -> 0 | M53: =SUMIF(M39,"S soft",N31) -> 0 | N53: =IF(M53>0,1,0) -> 0 | O53: =SUMIF(O39,"S soft",P31) -> 0 | P53: =IF(O53>0,1,0) -> 0 | Q53: =E53+G53+I53+K53+M53+O53 -> 0 | R53: =VLOOKUP(C53,'nbr tours'!$D$10:$H$12,5,FALSE) ->  | T53: =IFERROR((Q53)*R53,0) -> 0
C54: soft | E54: =SUMIF(E39,"soft",F31) -> 0 | G54: =SUMIF(G39,"soft",H31) -> 0 | H54: =IF(G54>0,1,0) -> 0 | I54: =SUMIF(I39,"soft",J31) -> 0 | J54: =IF(I54>0,1,0) -> 0 | K54: =SUMIF(K39,"soft",L31) -> 0 | L54: =IF(K54>0,1,0) -> 0 | M54: =SUMIF(M39,"soft",N31) -> 0 | N54: =IF(M54>0,1,0) -> 0 | O54: =SUMIF(O39,"soft",P31) -> 0 | P54: =IF(O54>0,1,0) -> 0 | Q54: 0 | R54: =VLOOKUP(C54,'nbr tours'!$D$10:$H$12,5,FALSE) ->  | T54: =IFERROR((Q54)*R54,0) -> 0
C55: médium | E55: =SUMIF(E39,"médium",F31) -> 0 | G55: =SUMIF(G39,"médium",H31) -> 0 | H55: =IF(G55>0,1,0) -> 0 | I55: =SUMIF(I39,"médium",J31) -> 0 | J55: =IF(I55>0,1,0) -> 0 | K55: =SUMIF(K39,"médium",L31) -> 0 | L55: =IF(K55>0,1,0) -> 0 | M55: =SUMIF(M39,"médium",N31) -> 0 | N55: =IF(M55>0,1,0) -> 0 | O55: =SUMIF(O39,"médium",P31) -> 0 | P55: =IF(O55>0,1,0) -> 0 | Q55: 0 | R55: =VLOOKUP(C55,'nbr tours'!$D$10:$H$12,5,FALSE) ->  | T55: =IFERROR((Q55)*R55,0) -> 0
C56: hard | E56: =SUMIF(E39,"hard",F31) -> 0 | G56: =SUMIF(G39,"hard",H31) -> 0 | H56: =IF(G56>0,1,0) -> 0 | I56: =SUMIF(I39,"hard",J31) -> 0 | J56: =IF(I56>0,1,0) -> 0 | K56: =SUMIF(K39,"hard",L31) -> 0 | L56: =IF(K56>0,1,0) -> 0 | M56: =SUMIF(M39,"hard",N31) -> 0 | N56: =IF(M56>0,1,0) -> 0 | O56: =SUMIF(O39,"hard",P31) -> 0 | P56: =IF(O56>0,1,0) -> 0 | Q56: 0 | R56: =VLOOKUP(C56,'nbr tours'!$D$10:$H$12,5,FALSE) ->  | T56: =IFERROR(Q56*R56,0) -> 0
C57: (sans) changement de pneus | E57: =SUMIF(E39,"sans",F31) -> 0 | G57: =SUMIF(G39,"sans",H31) -> 0 | I57: =SUMIF(I39,"sans",J31) -> 0 | K57: =SUMIF(K39,"sans",L31) -> 0 | M57: =SUMIF(M39,"sans",N31) -> 0 | O57: =SUMIF(O39,"sans",P31) -> 0 | Q57: 0 | R57: =chronos!N18 ->  | T57: =IFERROR(Q57*R57,0) -> 0 | U57: cumul pertes de temps
C58: inter | E58: =SUMIF(E39,"inter",F31) -> 0 | G58: =SUMIF(G39,"inter",H31) -> 0 | H58: =IF(G58>0,1,0) -> 0 | I58: =SUMIF(I39,"inter",J31) -> 0 | J58: =IF(I58>0,1,0) -> 0 | K58: =SUMIF(K39,"inter",L31) -> 0 | L58: =IF(K58>0,1,0) -> 0 | M58: =SUMIF(M39,"inter",N31) -> 0 | N58: =IF(M58>0,1,0) -> 0 | O58: =SUMIF(O39,"inter",P31) -> 0 | P58: =IF(O58>0,1,0) -> 0 | Q58: 0 | R58: =VLOOKUP(C58,'nbr tours'!$D$10:$H$12,5,FALSE) ->  | T58: =IFERROR(Q58*R58,0) -> 0
C59: pluie | E59: =SUMIF(E39,"pluie",F31) -> 0 | G59: =SUMIF(G39,"pluie",H31) -> 0 | H59: =IF(G59>0,1,0) -> 0 | I59: =SUMIF(I39,"pluie",J31) -> 0 | J59: =IF(I59>0,1,0) -> 0 | K59: =SUMIF(K39,"pluie",L31) -> 0 | L59: =IF(K59>0,1,0) -> 0 | M59: =SUMIF(M39,"pluie",N31) -> 0 | N59: =IF(M59>0,1,0) -> 0 | O59: =SUMIF(O39,"pluie",P31) -> 0 | P59: =IF(O59>0,1,0) -> 0 | Q59: 0 | R59: =VLOOKUP(C59,'nbr tours'!$D$10:$H$12,5,FALSE) ->  | T59: =IFERROR(Q59*R59,0) -> 0 | U59: =U65+V52+C33 ->  | V59: =U59/86400 -> 
C60: Nbr de changements de pneu | H60: =SUM(H53:H59) -> 0 | J60: =SUM(J53:J59) -> 0 | L60: =SUM(L53:L59) -> 0 | N60: =SUM(N53:N59) -> 0 | P60: =SUM(P53:P59) -> 0 | Q60: =P60+N60+L60+J60+H60+F60 -> 0 | T60: =SUM(T53:T59) -> 0 | U60: =U59/N68 ->  | V60: =U60/86400 -> 
C61: Nbr de refuels | F61: =IF(H42>0,1,0) ->  | H61: =IF(J42>0,1,0) ->  | J61: =IF(L42>0,1,0) ->  | L61: =IF(N42>0,1,0) ->  | N61: =IF(P42>0,1,0) ->  | P61: =IF(Q42>0,1,0) -> 0 | Q61: =P61+N61+L61+J61+H61+F61 -> 
T62: tps échange pneu : | U62: =Q60*K22 -> 0 | V62: =U62/86400 -> 00:00:00
T63: tps refuel : | U63: =$U$42*$R$22 -> 
Q64: somme max refuel ou échange pneus : | U64: =MAX(Q60:Q61) ->  | V64: =H22/86400 -> 00:00:01.100
Q65: Temps total arrêt au stand : | U65: =(U64*H22)+U62+U63 ->  | V65: =U65/86400 -> 
B68: Nombre de pits | E68: =U64 ->  | G68: Temps moyen au tour | I68: =G11 -> 0 | K68: =VLOOKUP(I68,'nbr tours'!$D$10:$H$15,5,FALSE) ->  | N68: =T31 -> 0 | P68: en | Q68: =T60+V59 -> 
B70: Cumul tps pit(s) | E70: =V65 ->  | I70: =K11 -> 0 | K70: =VLOOKUP(I70,'nbr tours'!$D$10:$H$15,5,FALSE) ->  | N70: Distance totale : | Q70: =N68*K3 -> 
B72: Tps moyen avec pit | E72: =(T60+V59)/T31 ->  | I72: =O11 -> 0 | K72: =VLOOKUP(I72,'nbr tours'!$D$10:$H$15,5,FALSE) ->  | N72: Info consommation : | Q72: 1 | R72: =N18*Q72 -> 
C83: Utilisation | E83: =G11 -> 0 | F83: =K11 -> 0 | G83: =O11 -> 0
E84: =I11 -> 0 | F84: =M11 -> 0 | G84: =Q11 -> 0
C85: Obligatoire(s) | E85: =IF(E84="obligatoire",E83,"libre") -> libre | F85: =IF(F84="obligatoire",F83,"libre") -> libre | G85: =IF(G84="obligatoire",G83,"libre") -> libre
P86: FALSE
C87: Utilisés | E87: =E39 -> 0 | F87: =G39 -> 0 | G87: =I39 -> 0 | H87: =K39 -> 0 | I87: =M39 -> 0 | J87: =O39 -> 0 | K87: libre | L87: =ISNUMBER(MATCH(E85,$E$87:$K$87,0)) -> TRUE | M87: =ISNUMBER(MATCH(F85,$E$87:$K$87,0)) -> TRUE | N87: TRUE | P87: =COUNTIF(L87:N87,"FAUX") -> 0

Sheet Strat 2
A3: DONNEES COURSE | C3: Circuit / Piste : | E3: ='Strat 1'!E3:H3 -> 0 | I3: Longueur circuit : | K3: ='Strat 1'!K3 ->  | L3: corners : | M3: ='Strat 1'!M3 ->  | N3: Condition météo, horaire : | Q3: ='Strat 1'!Q3 -> 0 | R3: ='Strat 1'!R3 -> 0h0 | S3: hr | X3: Menus
C5: Catégorie du véhicule : | F5: ='Strat 1'!F5 -> 0 | I5: Durée de la course : | K5: ='Strat 1'!K5 -> 00:00:00 | L5: hr où | M5: ='Strat 1'!M5 -> 0 | N5: ='Strat 1'!N5 ->  | O5: Host salon : | Q5: ='Strat 1'!Q5:R5 -> 0
C7: Modèle : | E7: ='Strat 1'!E7:H7 -> 0 | P7: Cast : | Q7: ='Strat 1'!Q7:R7 -> 0
E10: condition usure | G10: pneus 1 | K10: pneus 2 | O10: pneus 3
C11: Pneumatique : | E11: =chronos!G7 -> X1 | G11: ='Strat 1'!G11 -> 0 | H11: Monte : | I11: ='Strat 1'!I11 -> 0 | K11: ='Strat 1'!K11 -> 0 | L11: Monte : | M11: ='Strat 1'!M11 -> 0 | O11: ='Strat 1'!O11 -> 0 | P11: Monte : | Q11: ='Strat 1'!Q11 -> 0
G12: durée de vie | H12: nbr tours | I12: ='Strat 1'!I12 -> 1 | K12: durée de vie | L12: nbr tours | M12: ='Strat 1'!M12 -> 1 | O12: durée de vie | P12: nbr tours | Q12: ='Strat 1'!Q12 -> 1
E14: Trains de pneus : | H14: tps moyen | I14: ='nbr tours'!H106 ->  | L14: tps moyen | M14: ='nbr tours'!H107 ->  | P14: tps moyen | Q14: ='nbr tours'!H108 -> 
E17: condition fuel | I17: réservoir | K17: volume | M17: consommation | N17: taux/vol | Q17: volume | X17: S2
C18: Carburant : | E18: ='Strat 1'!E18 -> X1 | F18: Fourchette autonomie max : | I18: ='Strat 1'!I18 -> 0 | J18: pour | K18: ='Strat 1'!K18 -> 100 | L18: soit | M18: ='Strat 1'!M18 ->  | N18: ='Strat 1'!N18 ->  | O18: Jauge initiale : | Q18: ='Strat 1'!Q18 -> 100
O20: Litre/Sec | R20: 1 tour
C21: Temps d'arrêt au stand :
F22: ENTREE / SORTIE : | H22: ='Strat 1'!H22 -> 1.1 | I22: ECHANGE PNEUS : | K22: ='Strat 1'!K22 -> 4.5 | L22: REFUEL vitesse de ravitaillement : | O22: ='Strat 1'!O22 -> 5.747126437 | Q22: 1 | R22: ='Strat 1'!R22 -> 
F24: Echange pneumatiques : | H24: ='Strat 1'!H24 -> 5.6 | I24: Temps pneus + fuel : | K24: =H24+(I18*R22) ->  | L24: Nbr de tours total de refuel : | O24: =U42 ->  | P24: =O24*R22 -> 
B28: Tableau de bord stratégie de course | H28: 2 | I28: Indiquez la durée de vie des trains de pneus dans les données course | M28: Au moins un type de gomme obligatoire n'est pas utilisé | P28: Vous dépassez la durée de course de plus d'un tour
T29: total nbr de tours
B31: Nbr de tours / pit | E31: Départ | G31: Pit 1 | I31: Pit 2 | K31: Pit 3 | M31: Pit 4 | O31: Pit 5 | T31: =R31+P31+N31+L31+J31+H31+F31 -> 0
B32: Pertes de temps total : purge pénalité... | F32: =VLOOKUP(E39,'nbr tours'!$D$106:$E$111,2,FALSE) -> 0 | H32: =VLOOKUP(G39,'nbr tours'!$D$106:$E$111,2,FALSE) -> 0 | J32: =VLOOKUP(I39,'nbr tours'!$D$106:$E$111,2,FALSE) -> 0 | L32: =VLOOKUP(K39,'nbr tours'!$D$106:$E$111,2,FALSE) -> 0 | N32: =VLOOKUP(M39,'nbr tours'!$D$106:$E$111,2,FALSE) -> 0 | P32: =VLOOKUP(O39,'nbr tours'!$D$106:$E$111,2,FALSE) -> 0 | Q32: ='Strat 1'!Q32 -> 7 | R32: =Q32*R33 -> 0
C33: 00:00:00 | F33: =F31*$K$3 ->  | G33: =IF(ISERROR(F32<F31)="VRAI","",F32<F31) -> FALSE | H33: =H31*$K$3 ->  | I33: =IF(ISERROR(H32<H31)="VRAI","",H32<H31) -> FALSE | J33: =J31*$K$3 ->  | K33: =IF(ISERROR(J32<J31)="VRAI","",J32<J31) -> FALSE | L33: =L31*$K$3 ->  | M33: =IF(ISERROR(L32<L31)="VRAI","",L32<L31) -> FALSE | N33: =N31*$K$3 ->  | O33: =IF(ISERROR(N32<N31)="VRAI","",N32<N31) -> FALSE | P33: =P31*$K$3 ->  | Q33: =IF(ISERROR(P32<P31)="VRAI","",P32<P31) -> FALSE | R33: =COUNTIF(G33:Q33,"VRAI") -> 0
B35: Tours & Temps | F35: =F31 -> 0 | G35: =F31*E72 ->  | H35: =F35+H31 -> 0 | I35: =(E72*H31)+G35 ->  | J35: =H35+J31 -> 0 | K35: =(J31*E72)+I35 ->  | L35: =J35+L31 -> 0 | M35: =L31*E72+K35 ->  | N35: =L35+N31 -> 0 | O35: =(N31*E72)+M35 ->  | P35: =N35+P31 -> 0 | Q35: =(P31*E72)+O35 ->  | R35: =P35+R31 -> 0
G37: =F31 -> 0 | I37: =H31+F31 -> 0 | K37: =J31+H31+F31 -> 0 | M37: =L31+J31+H31+F31 -> 0 | O37: =N31+L31+J31+H31+F31 -> 0 | Q37: Dépassement nbr de tours
B39: Type pneus
B41: litres restant E40 / besoin hors éco F40 | E41: =Q18 -> 100 | G41: =G43*100 ->  | I41: =I43*100 ->  | K41: =K43*100 ->  | M41: =M43*100 ->  | O41: =O43*100 ->  | T41: refuel en litres | U41: refuel en tours
B42: ajust conso E41 / conso réelle F41 | E42: =VLOOKUP(E45,'ajust éco'!$B$9:$G$17,3,FALSE) ->  | F42: =(F33*E42) ->  | G42: =VLOOKUP(G45,'ajust éco'!$B$9:$G$17,3,FALSE) ->  | H42: =(H33*G42) ->  | I42: =VLOOKUP(I45,'ajust éco'!$B$9:$G$17,3,FALSE) ->  | J42: =(J33*I42) ->  | K42: =VLOOKUP(K45,'ajust éco'!$B$9:$G$17,3,FALSE) ->  | L42: =(L33*K42) ->  | M42: =VLOOKUP(M45,'ajust éco'!$B$9:$G$17,3,FALSE) ->  | N42: =(N33*M42) ->  | O42: =VLOOKUP(O45,'ajust éco'!$B$9:$G$17,3,FALSE) ->  | P42: =(P33*O42) ->  | T42: =G41+I41+K41+M41+O41 ->  | U42: =T42/$M$18 -> 
B43: Jauge fuel | E43: =Q18/100 -> 1 | F43: =(E43*$I$18)/1 -> 0 | G43: =MIN(100%,(SUM(H31*$N$18))) ->  | H43: =(G43*$I$18)/1 ->  | I43: =MIN(100%,(SUM(J31*$N$18))) ->  | J43: =(I43*$I$18)/1 ->  | K43: =MIN(100%,(SUM(L31*$N$18))) ->  | L43: =(K43*$I$18)/1 ->  | M43: =MIN(100%,(SUM(N31*$N$18))) ->  | N43: =(M43*$I$18)/1 ->  | O43: =MIN(100%,(SUM(P31*$N$18))) ->  | P43: =(O43*$I$18)/1 ->  | Q43: cumul perte de temps conduite éco
B45: Eco fuel | Q45: =U52 -> 00:00:00
E47: =E42*$K$3 ->  | G47: =G42*$K$3 ->  | I47: =I42*$K$3 ->  | K47: =K42*$K$3 ->  | M47: =M42*$K$3 ->  | O47: =O42*$K$3 -> 
C48: calcul perte temps | E48: =VLOOKUP(E45,'ajust éco'!$B$9:$L$17,11,"faux") -> 0 | G48: =VLOOKUP(G45,'ajust éco'!$B$9:$L$17,11,"faux") -> 0 | I48: =VLOOKUP(I45,'ajust éco'!$B$9:$L$17,11,"faux") -> 0 | K48: =VLOOKUP(K45,'ajust éco'!$B$9:$L$17,11,"faux") -> 0 | M48: =VLOOKUP(M45,'ajust éco'!$B$9:$L$17,11,"faux") -> 0 | O48: =VLOOKUP(O45,'ajust éco'!$B$9:$L$17,11,"faux") -> 0
E49: =E41/E47 ->  | G49: =G41/G47 ->  | I49: =I41/I47 ->  | K49: =K41/K47 ->  | M49: =M41/M47 ->  | O49: =O41/O47 -> 
B50: Autonomie | E50: =IF(F42>E41+1,"dépasse",E49) ->  | G50: =IF(H42>G41+1,"dépasse",G49) ->  | I50: =IF(J42>I41+1,"dépasse",I49) ->  | K50: =IF(L42>K41+1,"dépasse",K49) ->  | M50: =IF(N42>M41+1,"dépasse",M49) ->  | O50: =IF(P42>O41+1,"dépasse",O49) ->  | U50: somme perte de tps utilisation éco
U51: hr/mn/sec | V51: 1/100 hr
C52: Calcul augmentation tps/tour en fonction de la conduite | E52: =E48*F31 -> 0 | G52: =G48*H31 -> 0 | I52: =I48*J31 -> 0 | K52: =K48*L31 -> 0 | M52: =M48*N31 -> 0 | O52: =O48*P31 -> 0 | Q52: nbr tours /type pneus | R52: chronos | T52: tps total / type pneu | U52: =V52/86400 -> 00:00:00 | V52: =E52+G52+I52+K52+M52+O52 -> 0
C53: S soft | E53: =SUMIF(E39,"S soft",F31) -> 0 | G53: =SUMIF(G39,"S soft",H31) -> 0 | H53: =IF(G53>0,1,0) -> 0 | I53: =SUMIF(I39,"S soft",J31) -> 0 | J53: =IF(I53>0,1,0) -> 0 | K53: =SUMIF(K39,"S soft",L31) -> 0 | L53: =IF(K53>0,1,0) -> 0 | M53: =SUMIF(M39,"S soft",N31) -> 0 | N53: =IF(M53>0,1,0) -> 0 | O53: =SUMIF(O39,"S soft",P31) -> 0 | P53: =IF(O53>0,1,0) -> 0 | Q53: =E53+G53+I53+K53+M53+O53 -> 0 | R53: =VLOOKUP(C53,'nbr tours'!$D$106:$H$108,5,FALSE) ->  | T53: =IFERROR((Q53)*R53,0) -> 0
C54: soft | E54: =SUMIF(E39,"soft",F31) -> 0 | G54: =SUMIF(G39,"soft",H31) -> 0 | H54: =IF(G54>0,1,0) -> 0 | I54: =SUMIF(I39,"soft",J31) -> 0 | J54: =IF(I54>0,1,0) -> 0 | K54: =SUMIF(K39,"soft",L31) -> 0 | L54: =IF(K54>0,1,0) -> 0 | M54: =SUMIF(M39,"soft",N31) -> 0 | N54: =IF(M54>0,1,0) -> 0 | O54: =SUMIF(O39,"soft",P31) -> 0 | P54: =IF(O54>0,1,0) -> 0 | Q54: 0 | R54: =VLOOKUP(C54,'nbr tours'!$D$106:$H$108,5,FALSE) ->  | T54: =IFERROR((Q54)*R54,0) -> 0
C55: médium | E55: =SUMIF(E39,"médium",F31) -> 0 | G55: =SUMIF(G39,"médium",H31) -> 0 | H55: =IF(G55>0,1,0) -> 0 | I55: =SUMIF(I39,"médium",J31) -> 0 | J55: =IF(I55>0,1,0) -> 0 | K55: =SUMIF(K39,"médium",L31) -> 0 | L55: =IF(K55>0,1,0) -> 0 | M55: =SUMIF(M39,"médium",N31) -> 0 | N55: =IF(M55>0,1,0) -> 0 | O55: =SUMIF(O39,"médium",P31) -> 0 | P55: =IF(O55>0,1,0) -> 0 | Q55: 0 | R55: =VLOOKUP(C55,'nbr tours'!$D$106:$H$108,5,FALSE) ->  | T55: =IFERROR((Q55)*R55,0) -> 0
C56: hard | E56: =SUMIF(E39,"hard",F31) -> 0 | G56: =SUMIF(G39,"hard",H31) -> 0 | H56: =IF(G56>0,1,0) -> 0 | I56: =SUMIF(I39,"hard",J31) -> 0 | J56: =IF(I56>0,1,0) -> 0 | K56: =SUMIF(K39,"hard",L31) -> 0 | L56: =IF(K56>0,1,0) -> 0 | M56: =SUMIF(M39,"hard",N31) -> 0 | N56: =IF(M56>0,1,0) -> 0 | O56: =SUMIF(O39,"hard",P31) -> 0 | P56: =IF(O56>0,1,0) -> 0 | Q56: 0 | R56: =VLOOKUP(C56,'nbr tours'!$D$106:$H$108,5,FALSE) ->  | T56: =IFERROR(Q56*R56,0) -> 0
C57: (sans) changement de pneus | E57: =SUMIF(E39,"sans",F31) -> 0 | G57: =SUMIF(G39,"sans",H31) -> 0 | I57: =SUMIF(I39,"sans",J31) -> 0 | K57: =SUMIF(K39,"sans",L31) -> 0 | M57: =SUMIF(M39,"sans",N31) -> 0 | O57: =SUMIF(O39,"sans",P31) -> 0 | Q57: 0 | R57: =chronos!N18 ->  | T57: =IFERROR(Q57*R57,0) -> 0 | U57: cumul pertes de temps
C58: inter | E58: =SUMIF(E39,"inter",F31) -> 0 | G58: =SUMIF(G39,"inter",H31) -> 0 | H58: =IF(G58>0,1,0) -> 0 | I58: =SUMIF(I39,"inter",J31) -> 0 | J58: =IF(I58>0,1,0) -> 0 | K58: =SUMIF(K39,"inter",L31) -> 0 | L58: =IF(K58>0,1,0) -> 0 | M58: =SUMIF(M39,"inter",N31) -> 0 | N58: =IF(M58>0,1,0) -> 0 | O58: =SUMIF(O39,"inter",P31) -> 0 | P58: =IF(O58>0,1,0) -> 0 | Q58: 0 | R58: =VLOOKUP(C58,'nbr tours'!$D$106:$H$108,5,FALSE) ->  | T58: =IFERROR(Q58*R58,0) -> 0
C59: pluie | E59: =SUMIF(E39,"pluie",F31) -> 0 | G59: =SUMIF(G39,"pluie",H31) -> 0 | H59: =IF(G59>0,1,0) -> 0 | I59: =SUMIF(I39,"pluie",J31) -> 0 | J59: =IF(I59>0,1,0) -> 0 | K59: =SUMIF(K39,"pluie",L31) -> 0 | L59: =IF(K59>0,1,0) -> 0 | M59: =SUMIF(M39,"pluie",N31) -> 0 | N59: =IF(M59>0,1,0) -> 0 | O59: =SUMIF(O39,"pluie",P31) -> 0 | P59: =IF(O59>0,1,0) -> 0 | Q59: 0 | R59: =VLOOKUP(C59,'nbr tours'!$D$106:$H$108,5,FALSE) ->  | T59: =IFERROR(Q59*R59,0) -> 0 | U59: =U65+V52+C33 ->  | V59: =U59/86400 -> 
C60: Nbr de changements de pneu | H60: =SUM(H53:H59) -> 0 | J60: =SUM(J53:J59) -> 0 | L60: =SUM(L53:L59) -> 0 | N60: =SUM(N53:N59) -> 0 | P60: =SUM(P53:P59) -> 0 | Q60: =P60+N60+L60+J60+H60+F60 -> 0 | T60: =SUM(T53:T59) -> 0 | U60: =U59/N68 ->  | V60: =U60/86400 -> 
C61: Nbr de refuels | F61: =IF(H42>0,1,0) ->  | H61: =IF(J42>0,1,0) ->  | J61: =IF(L42>0,1,0) ->  | L61: =IF(N42>0,1,0) ->  | N61: =IF(P42>0,1,0) ->  | P61: =IF(Q42>0,1,0) -> 0 | Q61: =P61+N61+L61+J61+H61+F61 -> 
T62: tps échange pneu : | U62: =Q60*K22 -> 0 | V62: =U62/86400 -> 00:00:00
T63: tps refuel : | U63: =$U$42*$R$22 -> 
Q64: somme max refuel ou échange pneus : | U64: =MAX(Q60:Q61) ->  | V64: =H22/86400 -> 00:00:01.100
Q65: Temps total arrêt au stand : | U65: =(U64*H22)+U62+U63 ->  | V65: =U65/86400 -> 
B68: Nombre de pits | E68: =U64 ->  | G68: Temps moyen au tour | I68: =G11 -> 0 | K68: =VLOOKUP(I68,'nbr tours'!$D$106:$H$111,5,FALSE) ->  | N68: =T31 -> 0 | P68: en | Q68: =T60+V59 -> 
B70: Cumul tps pit(s) | E70: =V65 ->  | I70: =K11 -> 0 | K70: =VLOOKUP(I70,'nbr tours'!$D$106:$H$111,5,FALSE) ->  | N70: Distance totale : | Q70: =N68*K3 -> 
B72: Tps moyen avec pit | E72: =(T60+V59)/T31 ->  | I72: =O11 -> 0 | K72: =VLOOKUP(I72,'nbr tours'!$D$106:$H$111,5,FALSE) ->  | N72: Info consommation : | Q72: 1 | R72: ='Strat 1'!R72 -> 
C83: Utilisation | E83: =G11 -> 0 | F83: =K11 -> 0 | G83: =O11 -> 0
E84: =I11 -> 0 | F84: =M11 -> 0 | G84: =Q11 -> 0
C85: Obligatoire(s) | E85: =IF(E84="obligatoire",E83,"libre") -> libre | F85: =IF(F84="obligatoire",F83,"libre") -> libre | G85: =IF(G84="obligatoire",G83,"libre") -> libre
P86: FALSE
C87: Utilisés | E87: =E39 -> 0 | F87: =G39 -> 0 | G87: =I39 -> 0 | H87: =K39 -> 0 | I87: =M39 -> 0 | J87: =O39 -> 0 | K87: libre | L87: =ISNUMBER(MATCH(E85,$E$87:$K$87,0)) -> TRUE | M87: =ISNUMBER(MATCH(F85,$E$87:$K$87,0)) -> TRUE | N87: TRUE | P87: =COUNTIF(L87:N87,"FAUX") -> 0

Sheet strat 3
A3: DONNEES COURSE | C3: Circuit / Piste : | E3: ='Strat 1'!E3:H3 -> 0 | I3: Longueur circuit : | K3: ='Strat 1'!K3 ->  | L3: corners : | M3: ='Strat 1'!M3 ->  | N3: Condition météo, horaire : | Q3: ='Strat 1'!Q3 -> 0 | R3: ='Strat 1'!R3 -> 0h0 | S3: hr | X3: Menus
C5: Catégorie du véhicule : | F5: ='Strat 1'!F5 -> 0 | I5: Durée de la course : | K5: ='Strat 1'!K5 -> 00:00:00 | L5: hr où | M5: ='Strat 1'!M5 -> 0 | N5: ='Strat 1'!N5 ->  | O5: Host salon : | Q5: ='Strat 1'!Q5:R5 -> 0
C7: Modèle : | E7: ='Strat 1'!E7:H7 -> 0 | P7: Cast : | Q7: ='Strat 1'!Q7:R7 -> 0
E10: condition usure | G10: pneus 1 | K10: pneus 2 | O10: pneus 3
C11: Pneumatique : | E11: =chronos!G7 -> X1 | G11: ='Strat 1'!G11 -> 0 | H11: Monte : | I11: ='Strat 1'!I11 -> 0 | K11: ='Strat 1'!K11 -> 0 | L11: Monte : | M11: ='Strat 1'!M11 -> 0 | O11: ='Strat 1'!O11 -> 0 | P11: Monte : | Q11: ='Strat 1'!Q11 -> 0
G12: durée de vie | H12: nbr tours | I12: ='Strat 1'!I12 -> 1 | K12: durée de vie | L12: nbr tours | M12: ='Strat 1'!M12 -> 1 | O12: durée de vie | P12: nbr tours | Q12: ='Strat 1'!Q12 -> 1
E14: Trains de pneus : | H14: temps : | I14: ='nbr tours'!H206 ->  | L14: temps : | M14: ='nbr tours'!H207 ->  | P14: temps : | Q14: ='nbr tours'!H208 -> 
E17: condition fuel | I17: réservoir | K17: volume | M17: consommation | N17: taux/vol | Q17: volume | X17: S3
C18: Carburant : | E18: ='Strat 1'!E18 -> X1 | F18: Fourchette autonomie max : | I18: ='Strat 1'!I18 -> 0 | J18: pour | K18: ='Strat 1'!K18 -> 100 | L18: soit | M18: ='Strat 1'!M18 ->  | N18: ='Strat 1'!N18 ->  | O18: Jauge initiale : | Q18: ='Strat 1'!Q18 -> 100
O20: Litre/Sec | R20: 1 tour
C21: Temps d'arrêt au stand :
F22: ENTREE / SORTIE : | H22: ='Strat 1'!H22 -> 1.1 | I22: ECHANGE PNEUS : | K22: ='Strat 1'!K22 -> 4.5 | L22: REFUEL vitesse de ravitaillement : | O22: ='Strat 1'!O22 -> 5.747126437 | Q22: 1 | R22: ='Strat 1'!R22 -> 
F24: Echange pneumatiques : | H24: ='Strat 1'!H24 -> 5.6 | I24: Temps pneus + fuel : | K24: =H24+(I18*R22) ->  | L24: Nbr de tours total de refuel : | O24: =U42 ->  | P24: =O24*R22 -> 
B28: Tableau de bord stratégie de course | H28: 3 | I28: Indiquez la durée de vie des trains de pneus dans les données course | M28: Au moins un type de gomme obligatoire n'est pas utilisé | P28: Vous dépassez la durée de course de plus d'un tour
T29: total nbr de tours
B31: Nbr de tours / pit | E31: Départ | G31: Pit 1 | I31: Pit 2 | K31: Pit 3 | M31: Pit 4 | O31: Pit 5 | T31: =R31+P31+N31+L31+J31+H31+F31 -> 0
B32: Pertes de temps total : purge pénalité... | F32: =VLOOKUP(E39,'nbr tours'!$D$206:'nbr tours'!$E$211,2,FALSE) -> 0 | H32: =VLOOKUP(G39,'nbr tours'!$D$206:'nbr tours'!$E$211,2,FALSE) -> 0 | J32: =VLOOKUP(I39,'nbr tours'!$D$206:'nbr tours'!$E$211,2,FALSE) -> 0 | L32: =VLOOKUP(K39,'nbr tours'!$D$206:'nbr tours'!$E$211,2,FALSE) -> 0 | N32: =VLOOKUP(M39,'nbr tours'!$D$206:'nbr tours'!$E$211,2,FALSE) -> 0 | P32: =VLOOKUP(O39,'nbr tours'!$D$206:'nbr tours'!$E$211,2,FALSE) -> 0 | Q32: ='Strat 1'!Q32 -> 7 | R32: =Q32*R33 -> 0
C33: 00:00:00 | F33: =F31*$K$3 ->  | G33: =IF(ISERROR(F32<F31)="VRAI","",F32<F31) -> FALSE | H33: =H31*$K$3 ->  | I33: =IF(ISERROR(H32<H31)="VRAI","",H32<H31) -> FALSE | J33: =J31*$K$3 ->  | K33: =IF(ISERROR(J32<J31)="VRAI","",J32<J31) -> FALSE | L33: =L31*$K$3 ->  | M33: =IF(ISERROR(L32<L31)="VRAI","",L32<L31) -> FALSE | N33: =N31*$K$3 ->  | O33: =IF(ISERROR(N32<N31)="VRAI","",N32<N31) -> FALSE | P33: =P31*$K$3 ->  | Q33: =IF(ISERROR(P32<P31)="VRAI","",P32<P31) -> FALSE | R33: =COUNTIF(G33:Q33,"VRAI") -> 0
B35: Tours & Temps | F35: =F31 -> 0 | G35: =F31*E72 ->  | H35: =F35+H31 -> 0 | I35: =(E72*H31)+G35 ->  | J35: =H35+J31 -> 0 | K35: =(J31*E72)+I35 ->  | L35: =J35+L31 -> 0 | M35: =L31*E72+K35 ->  | N35: =L35+N31 -> 0 | O35: =(N31*E72)+M35 ->  | P35: =N35+P31 -> 0 | Q35: =(P31*E72)+O35 ->  | R35: =P35+R31 -> 0
G37: =F31 -> 0 | I37: =H31+F31 -> 0 | K37: =J31+H31+F31 -> 0 | M37: =L31+J31+H31+F31 -> 0 | O37: =N31+L31+J31+H31+F31 -> 0 | Q37: Dépassement nbr de tours
B39: Type pneus
B41: litres restant E40 / besoin hors éco F40 | E41: =Q18 -> 100 | G41: =G43*100 ->  | I41: =I43*100 ->  | K41: =K43*100 ->  | M41: =M43*100 ->  | O41: =O43*100 ->  | T41: refuel en litres | U41: refuel en tours
B42: ajust conso E41 / conso réelle F41 | E42: =VLOOKUP(E45,'ajust éco'!$B$9:$G$17,3,FALSE) ->  | F42: =(F33*E42) ->  | G42: =VLOOKUP(G45,'ajust éco'!$B$9:$G$17,3,FALSE) ->  | H42: =(H33*G42) ->  | I42: =VLOOKUP(I45,'ajust éco'!$B$9:$G$17,3,FALSE) ->  | J42: =(J33*I42) ->  | K42: =VLOOKUP(K45,'ajust éco'!$B$9:$G$17,3,FALSE) ->  | L42: =(L33*K42) ->  | M42: =VLOOKUP(M45,'ajust éco'!$B$9:$G$17,3,FALSE) ->  | N42: =(N33*M42) ->  | O42: =VLOOKUP(O45,'ajust éco'!$B$9:$G$17,3,FALSE) ->  | P42: =(P33*O42) ->  | T42: =G41+I41+K41+M41+O41 ->  | U42: =T42/$M$18 -> 
B43: Jauge fuel | E43: =Q18/100 -> 1 | F43: =(E43*$I$18)/1 -> 0 | G43: =MIN(100%,(SUM(H31*$N$18))) ->  | H43: =(G43*$I$18)/1 ->  | I43: =MIN(100%,(SUM(J31*$N$18))) ->  | J43: =(I43*$I$18)/1 ->  | K43: =MIN(100%,(SUM(L31*$N$18))) ->  | L43: =(K43*$I$18)/1 ->  | M43: =MIN(100%,(SUM(N31*$N$18))) ->  | N43: =(M43*$I$18)/1 ->  | O43: =MIN(100%,(SUM(P31*$N$18))) ->  | P43: =(O43*$I$18)/1 ->  | Q43: cumul perte de temps conduite éco
B45: Eco fuel | Q45: =U52 -> 00:00:00
E47: =E42*$K$3 ->  | G47: =G42*$K$3 ->  | I47: =I42*$K$3 ->  | K47: =K42*$K$3 ->  | M47: =M42*$K$3 ->  | O47: =O42*$K$3 -> 
C48: calcul perte temps | E48: =VLOOKUP(E45,'ajust éco'!$B$9:$L$17,11,"faux") -> 0 | G48: =VLOOKUP(G45,'ajust éco'!$B$9:$L$17,11,"faux") -> 0 | I48: =VLOOKUP(I45,'ajust éco'!$B$9:$L$17,11,"faux") -> 0 | K48: =VLOOKUP(K45,'ajust éco'!$B$9:$L$17,11,"faux") -> 0 | M48: =VLOOKUP(M45,'ajust éco'!$B$9:$L$17,11,"faux") -> 0 | O48: =VLOOKUP(O45,'ajust éco'!$B$9:$L$17,11,"faux") -> 0
E49: =E41/E47 ->  | G49: =G41/G47 ->  | I49: =I41/I47 ->  | K49: =K41/K47 ->  | M49: =M41/M47 ->  | O49: =O41/O47 -> 
B50: Autonomie | E50: =IF(F42>E41+1,"dépasse",E49) ->  | G50: =IF(H42>G41+1,"dépasse",G49) ->  | I50: =IF(J42>I41+1,"dépasse",I49) ->  | K50: =IF(L42>K41+1,"dépasse",K49) ->  | M50: =IF(N42>M41+1,"dépasse",M49) ->  | O50: =IF(P42>O41+1,"dépasse",O49) ->  | U50: somme perte de tps utilisation éco
U51: hr/mn/sec | V51: 1/100 hr
C52: Calcul augmentation tps/tour en fonction de la conduite | E52: =E48*F31 -> 0 | G52: =G48*H31 -> 0 | I52: =I48*J31 -> 0 | K52: =K48*L31 -> 0 | M52: =M48*N31 -> 0 | O52: =O48*P31 -> 0 | Q52: nbr tours /type pneus | R52: chronos | T52: tps total / type pneu | U52: =V52/86400 -> 00:00:00 | V52: =E52+G52+I52+K52+M52+O52 -> 0
C53: S soft | E53: =SUMIF(E39,"S soft",F31) -> 0 | G53: =SUMIF(G39,"S soft",H31) -> 0 | H53: =IF(G53>0,1,0) -> 0 | I53: =SUMIF(I39,"S soft",J31) -> 0 | J53: =IF(I53>0,1,0) -> 0 | K53: =SUMIF(K39,"S soft",L31) -> 0 | L53: =IF(K53>0,1,0) -> 0 | M53: =SUMIF(M39,"S soft",N31) -> 0 | N53: =IF(M53>0,1,0) -> 0 | O53: =SUMIF(O39,"S soft",P31) -> 0 | P53: =IF(O53>0,1,0) -> 0 | Q53: =E53+G53+I53+K53+M53+O53 -> 0 | R53: =VLOOKUP(C53,'nbr tours'!$D$206:$H$208,5,FALSE) ->  | T53: =IFERROR((Q53)*R53,0) -> 0
C54: soft | E54: =SUMIF(E39,"soft",F31) -> 0 | G54: =SUMIF(G39,"soft",H31) -> 0 | H54: =IF(G54>0,1,0) -> 0 | I54: =SUMIF(I39,"soft",J31) -> 0 | J54: =IF(I54>0,1,0) -> 0 | K54: =SUMIF(K39,"soft",L31) -> 0 | L54: =IF(K54>0,1,0) -> 0 | M54: =SUMIF(M39,"soft",N31) -> 0 | N54: =IF(M54>0,1,0) -> 0 | O54: =SUMIF(O39,"soft",P31) -> 0 | P54: =IF(O54>0,1,0) -> 0 | Q54: 0 | R54: =VLOOKUP(C54,'nbr tours'!$D$206:$H$208,5,FALSE) ->  | T54: =IFERROR((Q54)*R54,0) -> 0
C55: médium | E55: =SUMIF(E39,"médium",F31) -> 0 | G55: =SUMIF(G39,"médium",H31) -> 0 | H55: =IF(G55>0,1,0) -> 0 | I55: =SUMIF(I39,"médium",J31) -> 0 | J55: =IF(I55>0,1,0) -> 0 | K55: =SUMIF(K39,"médium",L31) -> 0 | L55: =IF(K55>0,1,0) -> 0 | M55: =SUMIF(M39,"médium",N31) -> 0 | N55: =IF(M55>0,1,0) -> 0 | O55: =SUMIF(O39,"médium",P31) -> 0 | P55: =IF(O55>0,1,0) -> 0 | Q55: 0 | R55: =VLOOKUP(C55,'nbr tours'!$D$206:$H$208,5,FALSE) ->  | T55: =IFERROR((Q55)*R55,0) -> 0
C56: hard | E56: =SUMIF(E39,"hard",F31) -> 0 | G56: =SUMIF(G39,"hard",H31) -> 0 | H56: =IF(G56>0,1,0) -> 0 | I56: =SUMIF(I39,"hard",J31) -> 0 | J56: =IF(I56>0,1,0) -> 0 | K56: =SUMIF(K39,"hard",L31) -> 0 | L56: =IF(K56>0,1,0) -> 0 | M56: =SUMIF(M39,"hard",N31) -> 0 | N56: =IF(M56>0,1,0) -> 0 | O56: =SUMIF(O39,"hard",P31) -> 0 | P56: =IF(O56>0,1,0) -> 0 | Q56: 0 | R56: =VLOOKUP(C56,'nbr tours'!$D$206:$H$208,5,FALSE) ->  | T56: =IFERROR(Q56*R56,0) -> 0
C57: (sans) changement de pneus | E57: =SUMIF(E39,"sans",F31) -> 0 | G57: =SUMIF(G39,"sans",H31) -> 0 | I57: =SUMIF(I39,"sans",J31) -> 0 | K57: =SUMIF(K39,"sans",L31) -> 0 | M57: =SUMIF(M39,"sans",N31) -> 0 | O57: =SUMIF(O39,"sans",P31) -> 0 | Q57: 0 | R57: =chronos!N18 ->  | T57: =IFERROR(Q57*R57,0) -> 0 | U57: cumul pertes de temps
C58: inter | E58: =SUMIF(E39,"inter",F31) -> 0 | G58: =SUMIF(G39,"inter",H31) -> 0 | H58: =IF(G58>0,1,0) -> 0 | I58: =SUMIF(I39,"inter",J31) -> 0 | J58: =IF(I58>0,1,0) -> 0 | K58: =SUMIF(K39,"inter",L31) -> 0 | L58: =IF(K58>0,1,0) -> 0 | M58: =SUMIF(M39,"inter",N31) -> 0 | N58: =IF(M58>0,1,0) -> 0 | O58: =SUMIF(O39,"inter",P31) -> 0 | P58: =IF(O58>0,1,0) -> 0 | Q58: 0 | R58: =VLOOKUP(C58,'nbr tours'!$D$206:$H$208,5,FALSE) ->  | T58: =IFERROR(Q58*R58,0) -> 0
C59: pluie | E59: =SUMIF(E39,"pluie",F31) -> 0 | G59: =SUMIF(G39,"pluie",H31) -> 0 | H59: =IF(G59>0,1,0) -> 0 | I59: =SUMIF(I39,"pluie",J31) -> 0 | J59: =IF(I59>0,1,0) -> 0 | K59: =SUMIF(K39,"pluie",L31) -> 0 | L59: =IF(K59>0,1,0) -> 0 | M59: =SUMIF(M39,"pluie",N31) -> 0 | N59: =IF(M59>0,1,0) -> 0 | O59: =SUMIF(O39,"pluie",P31) -> 0 | P59: =IF(O59>0,1,0) -> 0 | Q59: 0 | R59: =VLOOKUP(C59,'nbr tours'!$D$206:$H$208,5,FALSE) ->  | T59: =IFERROR(Q59*R59,0) -> 0 | U59: =U65+V52+C33 ->  | V59: =U59/86400 -> 
C60: Nbr de changements de pneu | H60: =SUM(H53:H59) -> 0 | J60: =SUM(J53:J59) -> 0 | L60: =SUM(L53:L59) -> 0 | N60: =SUM(N53:N59) -> 0 | P60: =SUM(P53:P59) -> 0 | Q60: =P60+N60+L60+J60+H60+F60 -> 0 | T60: =SUM(T53:T59) -> 0 | U60: =U59/N68 ->  | V60: =U60/86400 -> 
C61: Nbr de refuels | F61: =IF(H42>0,1,0) ->  | H61: =IF(J42>0,1,0) ->  | J61: =IF(L42>0,1,0) ->  | L61: =IF(N42>0,1,0) ->  | N61: =IF(P42>0,1,0) ->  | P61: =IF(Q42>0,1,0) -> 0 | Q61: =P61+N61+L61+J61+H61+F61 -> 
T62: tps échange pneu : | U62: =Q60*K22 -> 0 | V62: =U62/86400 -> 00:00:00
T63: tps refuel : | U63: =$U$42*$R$22 -> 
Q64: somme max refuel ou échange pneus : | U64: =MAX(Q60:Q61) ->  | V64: =H22/86400 -> 00:00:01.100
Q65: Temps total arrêt au stand : | U65: =(U64*H22)+U62+U63 ->  | V65: =U65/86400 -> 
B68: Nombre de pits | E68: =U64 ->  | G68: Temps moyen au tour | I68: =G11 -> 0 | K68: =VLOOKUP(I68,'nbr tours'!$D$206:$H$211,5,FALSE) ->  | N68: =T31 -> 0 | P68: en | Q68: =T60+V59 -> 
B70: Cumul tps pit(s) | E70: =V65 ->  | I70: =K11 -> 0 | K70: =VLOOKUP(I70,'nbr tours'!$D$206:$H$211,5,FALSE) ->  | N70: Distance totale : | Q70: =N68*K3 -> 
B72: Tps moyen avec pit | E72: =(T60+V59)/T31 ->  | I72: =O11 -> 0 | K72: =VLOOKUP(I72,'nbr tours'!$D$206:$H$211,5,FALSE) ->  | N72: Info consommation : | Q72: 1 | R72: ='Strat 1'!R72 -> 
C83: Utilisation | E83: =G11 -> 0 | F83: =K11 -> 0 | G83: =O11 -> 0
E84: =I11 -> 0 | F84: =M11 -> 0 | G84: =Q11 -> 0
C85: Obligatoire(s) | E85: =IF(E84="obligatoire",E83,"libre") -> libre | F85: =IF(F84="obligatoire",F83,"libre") -> libre | G85: =IF(G84="obligatoire",G83,"libre") -> libre
P86: FALSE
C87: Utilisés | E87: =E39 -> 0 | F87: =G39 -> 0 | G87: =I39 -> 0 | H87: =K39 -> 0 | I87: =M39 -> 0 | J87: =O39 -> 0 | K87: libre | L87: =ISNUMBER(MATCH(E85,$E$87:$K$87,0)) -> TRUE | M87: =ISNUMBER(MATCH(F85,$E$87:$K$87,0)) -> TRUE | N87: TRUE | P87: =COUNTIF(L87:N87,"FAUX") -> 0

Sheet comparateur
C4: Circuit : | E4: ='Strat 1'!E3 -> 0 | L4: ='Strat 1'!N68 -> 0 | N4: Catégorie : | O4: ='Strat 1'!F5 -> 0 | P4: Voiture : | Q4: ='Strat 1'!E7 -> 0 | AB4: ='Strat 1'!Q3 -> 0 | AF4: ='Strat 1'!R3 -> 0h0 | AK4: Accès menus
C8: COMPARATEUR STRAT | L8: Stratégie 1 | O8: Indice de risque : | R8: =T69 -> 0 | U8: Type pneus : | V8: ='Strat 1'!E39 -> 0 | X8: ='Strat 1'!G39 -> 0 | Z8: ='Strat 1'!I39 -> 0 | AB8: ='Strat 1'!K39 -> 0 | AD8: ='Strat 1'!M39 -> 0 | AF8: ='Strat 1'!O39 -> 0
E9: type | G9: tps moyen | I9: durée | U9: Pit | V9: Dép. | X9: P1 | Z9: P2 | AB9: P3 | AD9: P3 | AF9: P3
E10: ='Strat 1'!I68 -> 0 | G10: ='Strat 1'!K68 ->  | I10: ='Strat 1'!G14 -> 0 | N10: STOP PIT | O10: Durée : | R10: ='Strat 1'!Q68 ->  | S10: =R10*24 ->  | U10: Nbr de tours : | V10: ='Strat 1'!F31 -> 0 | X10: ='Strat 1'!H31 -> 0 | Z10: ='Strat 1'!J31 -> 0 | AB10: ='Strat 1'!L31 -> 0 | AD10: ='Strat 1'!N31 -> 0 | AF10: ='Strat 1'!P31 -> 0
E12: ='Strat 1'!I70 -> 0 | G12: ='Strat 1'!K70 ->  | I12: ='Strat 1'!K14 -> 0 | L12: Nombre : | N12: ='Strat 1'!E68 ->  | O12: Distance : | R12: =IF('Strat 1'!Q70=0,"",'Strat 1'!Q70) ->  | U12: Conduite éco : | V12: ='Strat 1'!E45 -> 0 | X12: ='Strat 1'!G45 -> 0 | Z12: ='Strat 1'!I45 -> 0 | AB12: ='Strat 1'!K45 -> 0 | AD12: ='Strat 1'!M45 -> 0 | AF12: ='Strat 1'!O45 -> 0
E15: ='Strat 1'!I72 -> 0 | G15: ='Strat 1'!K72 ->  | I15: ='Strat 1'!O14 -> 0 | L15: Cumul temps : | N15: ='Strat 1'!E70 ->  | O15: Vitesse moyenne : | R15: =R12/S10 ->  | U15: Usures pneus :
O18: Temps moyen : | R18: ='Strat 1'!E72 ->  | U18: Cumul perte de temps : | X18: =IF('Strat 1'!V59=0,"",'Strat 1'!V59) ->  | AA18: par tour : | AD18: ='Strat 1'!V60 -> 
L22: Stratégie 2 | O22: Indice de risque : | R22: =T78 -> 0 | U22: Type pneus : | V22: ='Strat 2'!E39 -> 0 | X22: ='Strat 2'!G39 -> 0 | Z22: ='Strat 2'!I39 -> 0 | AB22: ='Strat 2'!K39 -> 0 | AD22: ='Strat 2'!M39 -> 0 | AF22: ='Strat 2'!O39 -> 0
E23: type | G23: tps moyen | I23: durée | U23: Pit | V23: Dép. | X23: P1 | Z23: P2 | AB23: P3 | AD23: P3 | AF23: P3
E24: ='Strat 2'!I68 -> 0 | G24: ='Strat 2'!K68 ->  | I24: ='Strat 2'!G14 -> 0 | N24: STOP PIT | O24: Durée : | R24: ='Strat 2'!Q68 ->  | S24: =R24*24 ->  | T24: 0 | U24: Nbr de tours : | V24: ='Strat 2'!F31 -> 0 | X24: ='Strat 2'!H31 -> 0 | Z24: ='Strat 2'!J31 -> 0 | AB24: ='Strat 2'!L31 -> 0 | AD24: ='Strat 2'!N31 -> 0 | AF24: ='Strat 2'!P31 -> 0
E26: ='Strat 2'!I70 -> 0 | G26: ='Strat 2'!K70 ->  | I26: ='Strat 2'!K14 -> 0 | L26: Nombre : | N26: ='Strat 2'!E68 ->  | O26: Distance : | R26: =IF('Strat 2'!Q70=0,"",'Strat 2'!Q70) ->  | U26: Conduite éco : | V26: ='Strat 2'!E45 -> 0 | X26: ='Strat 2'!G45 -> 0 | Z26: ='Strat 2'!I45 -> 0 | AB26: ='Strat 2'!K45 -> 0 | AD26: ='Strat 2'!M45 -> 0 | AF26: ='Strat 2'!O45 -> 0
E29: ='Strat 2'!I72 -> 0 | G29: ='Strat 2'!K72 ->  | I29: ='Strat 2'!O14 -> 0 | L29: Cumul temps : | N29: ='Strat 2'!E70 ->  | O29: Vitesse moyenne : | R29: =R26/S24 ->  | U29: Usures pneus :
O32: Temps moyen : | R32: ='Strat 2'!E72 ->  | U32: Cumul perte de temps : | X32: =IF('Strat 2'!V59=0,"",'Strat 2'!V59) ->  | AA32: par tour : | AD32: ='Strat 2'!V60 -> 
L36: Stratégie 3 | O36: Indice de risque : | R36: =T87 -> 0 | U36: Type pneus : | V36: ='strat 3'!E39 -> 0 | X36: ='strat 3'!G39 -> 0 | Z36: ='strat 3'!I39 -> 0 | AB36: ='strat 3'!K39 -> 0 | AD36: ='strat 3'!M39 -> 0 | AF36: ='strat 3'!O39 -> 0
E37: type | G37: tps moyen | I37: durée | U37: Pit | V37: Dép. | X37: P1 | Z37: P2 | AB37: P3 | AD37: P3 | AF37: P3 | AK37: La meilleur stratégie est en principe celle ou la majorité des indicateurs sont verts avec le temps moyen / tour le plus bas et l'indice de risque le plus faible.
E38: ='strat 3'!I68 -> 0 | G38: ='strat 3'!K68 ->  | I38: ='strat 3'!G14 -> 0 | N38: STOP PIT | O38: Durée : | R38: ='strat 3'!Q68 ->  | S38: =R38*24 ->  | U38: Nbr de tours : | V38: ='strat 3'!F31 -> 0 | X38: ='strat 3'!H31 -> 0 | Z38: ='strat 3'!J31 -> 0 | AB38: ='strat 3'!L31 -> 0 | AD38: ='strat 3'!N31 -> 0 | AF38: ='strat 3'!P31 -> 0
E40: ='strat 3'!I70 -> 0 | G40: ='strat 3'!K70 ->  | I40: ='strat 3'!K14 -> 0 | L40: Nombre : | N40: ='strat 3'!E68 ->  | O40: Distance : | R40: =IF('strat 3'!Q70=0,"",'strat 3'!Q70) ->  | U40: Conduite éco : | V40: ='strat 3'!E45 -> 0 | X40: ='strat 3'!G45 -> 0 | Z40: ='strat 3'!I45 -> 0 | AB40: ='strat 3'!K45 -> 0 | AD40: ='strat 3'!M45 -> 0 | AF40: ='strat 3'!O45 -> 0
E43: ='strat 3'!I72 -> 0 | G43: ='strat 3'!K72 ->  | I43: ='strat 3'!O14 -> 0 | L43: Cumul temps : | N43: ='strat 3'!E70 ->  | O43: Vitesse moyenne : | R43: =R40/S38 ->  | U43: Usures pneus :
O46: Temps moyen : | R46: ='strat 3'!E72 ->  | U46: Cumul perte de temps : | X46: =IF('strat 3'!V59=0,"",'strat 3'!V59) ->  | AA46: par tour : | AD46: ='strat 3'!V60 -> 
X50: ajuster valeur max indice risque | AF50: 200
M62: strat 1 | N62: nb tours | P62: Coeff. | Q62: points | T62: dépasse
M63: S soft | N63: ='Strat 1'!$Q$53 -> 0 | P63: 1 | Q63: =P63*N63 -> 0 | T63: nbr
M64: soft | N64: ='Strat 1'!$Q$54 -> 0 | P64: 1.5 | Q64: =P64*N64 -> 0 | T64: tours
M65: médium | N65: ='Strat 1'!$Q$55 -> 0 | P65: 2 | Q65: 0 | T65: =T69-(Q69+R69) -> 0
M66: hard | N66: ='Strat 1'!$Q$56 -> 0 | P66: 3 | Q66: 0
M67: inter | N67: ='Strat 1'!$Q$58 -> 0 | P67: 4 | Q67: 0
M68: pluie | N68: ='Strat 1'!$Q$59 -> 0 | P68: 6 | Q68: 0 | R68: usure pneus
Q69: =SUM(Q63:Q68) -> 0 | R69: =V15+X15+Z15+AB15+AD15+AF15 -> 0 | T69: =Q69+R69+'Strat 1'!R32 -> 0
M71: strat 2
M72: S soft | N72: ='Strat 2'!$Q$53 -> 0 | P72: =P63 -> 1 | Q72: =P72*N72 -> 0 | T72: dépasse
M73: soft | N73: ='Strat 2'!$Q$54 -> 0 | P73: =P64 -> 1.5 | Q73: =P73*N73 -> 0 | T73: nbr
M74: médium | N74: ='Strat 2'!$Q$55 -> 0 | P74: 2 | Q74: 0 | T74: tours
M75: hard | N75: ='Strat 2'!$Q$56 -> 0 | P75: 3 | Q75: 0 | T75: =T78-(Q78+R78) -> 0
M76: inter | N76: ='Strat 2'!$Q$58 -> 0 | P76: 4 | Q76: 0
M77: pluie | N77: ='Strat 2'!$Q$59 -> 0 | P77: 6 | Q77: 0
Q78: =SUM(Q72:Q77) -> 0 | R78: =V29+X29+Z29+AB29+AD29+AF29 -> 0 | T78: =Q78+R78+'Strat 2'!R32 -> 0
M80: strat 3
M81: S soft | N81: ='strat 3'!$Q$53 -> 0 | P81: =P63 -> 1 | Q81: =P81*N81 -> 0 | T81: dépasse
M82: soft | N82: ='strat 3'!$Q$54 -> 0 | P82: =P64 -> 1.5 | Q82: =P82*N82 -> 0 | T82: nbr
M83: médium | N83: ='strat 3'!$Q$55 -> 0 | P83: 2 | Q83: 0 | T83: tours
M84: hard | N84: ='strat 3'!$Q$56 -> 0 | P84: 3 | Q84: 0 | T84: =T87-(Q87+R87) -> 0
M85: inter | N85: ='strat 3'!$Q$58 -> 0 | P85: 4 | Q85: 0
M86: pluie | N86: ='strat 3'!$Q$59 -> 0 | P86: 6 | Q86: 0
Q87: =SUM(Q81:Q86) -> 0 | R87: =V43+X43+Z43+AB43+AD43+AF43 -> 0 | T87: =Q87+R87+'strat 3'!R32 -> 0

Sheet chronos
B2: Tableau des temps :
C5: Equilibre des performances : | I5: Météo circuit : | K5: ='Strat 1'!Q3 -> 0 | M5: ='Strat 1'!R3 -> 0h0
C7: Usure des pneumatiques : | G7: X1 | H7: Consommation fuel : | K7: X1 | L7: niv | M7: 100 | N7: ='Strat 1'!Q18 -> 100
C10: Utilisation d'un même train de pneus pour : | G10: Essais libres 1 | J10: Essais libres 2 | M10: Essais libre 3
B13: gommes
E14: Meilleur temps | G14: Moins bon temps | H14: Temps moyen | J14: Moins bon temps | K14: Temps moyen | M14: Moins bon temps | N14: Temps moyen
C16: Pneumatiques
B18: 1 | H18: =AVERAGEIF(E18:G18,"<>0") ->  | I18: =E18 -> 00:00:00 | J18: =G18 -> 00:00:00 | K18: =AVERAGEIF(I18:J18,"<>0") ->  | L18: =E18 -> 00:00:00 | M18: =J18 -> 00:00:00 | N18: =AVERAGEIF(L18:M18,"<>0") -> 
B19: 2 | I19: =E19 -> 00:00:00 | J19: =G19 -> 00:00:00 | K19: =AVERAGEIF(I19:J19,"<>0") ->  | L19: =E19 -> 00:00:00 | M19: =J19 -> 00:00:00 | N19: =AVERAGEIF(L19:M19,"<>0") -> 
B20: 3 | I20: 00:00:00 | J20: =G20 -> 00:00:00 | L20: 00:00:00 | M20: =J20 -> 00:00:00
C22: Répartition freins : | F22: AV | G22: 0 | H22: AR | I22: AV | J22: 0 | K22: AR | L22: AV | M22: 0 | N22: AR
L26: Ajuster l'échelles du graphique :
S27: b
Q78: meilleur tour | R78: =G12 -> 0 | S78: =J12 -> 0 | T78: =M12 -> 0 | AB78: temps | AC78: =P18 -> 0 | AD78: =P19 -> 0 | AE78: =P20 -> 0 | AF78: =P21 -> 0 | AG78: =P22 -> 0 | AH78: =P24 -> 0
P79: =C18 -> 0 | Q79: =E18 -> 00:00:00 | R79: =H18 ->  | S79: =K18 ->  | T79: =N18 ->  | AB79: =G12 -> 0 | AC79: =G18 -> 00:00:00 | AD79: =G19 -> 00:00:00 | AE79: =G20 -> 00:00:00 | AF79: =G21 -> 00:00:00 | AG79: =#REF! ->  | AH79: =G24 -> 00:00:00
P80: =C19 -> 0 | Q80: =E19 -> 00:00:00 | R80: =H19 ->  | S80: =K19 ->  | T80: =N19 ->  | AB80: =J12 -> 0 | AC80: =J18 -> 00:00:00 | AD80: =J19 -> 00:00:00 | AE80: =J20 -> 00:00:00 | AF80: =J21 -> 00:00:00 | AG80: =#REF! ->  | AH80: =J24 -> 00:00:00
P81: =C20 -> 0 | Q81: =E20 -> 00:00:00 | R81: =H20 ->  | S81: =K20 ->  | T81: =N20 ->  | AB81: =M12 -> 0 | AC81: =M18 -> 00:00:00 | AD81: =M19 -> 00:00:00 | AE81: =M20 -> 00:00:00 | AF81: =M21 -> 00:00:00 | AG81: =#REF! ->  | AH81: =M24 -> 00:00:00
AB83: moyenne | AC83: =P18 -> 0 | AD83: =P19 -> 0 | AE83: =P20 -> 0 | AF83: =P21 -> 0 | AG83: =P22 -> 0 | AH83: =P24 -> 0
AB84: =G12 -> 0 | AC84: =H18 ->  | AD84: =H19 ->  | AE84: =H20 ->  | AF84: =H21 -> 00:00:00 | AG84: =#REF! ->  | AH84: =H24 -> 00:00:00
AB85: =J12 -> 0 | AC85: =K18 ->  | AD85: =K19 ->  | AE85: =K20 ->  | AF85: =K21 -> 00:00:00 | AG85: =#REF! ->  | AH85: =K24 -> 00:00:00
AB86: =M12 -> 0 | AC86: =N18 ->  | AD86: =N19 ->  | AE86: =N20 ->  | AF86: =N21 -> 00:00:00 | AG86: =#REF! ->  | AH86: =N24 -> 00:00:00
N90: 86400 | Q90: meilleur tour | R90: =R78 -> 0 | S90: =S78 -> 0 | T90: =T78 -> 0
P91: =C18 -> 0 | Q91: =(Q79*$N$90) -> 0 | R91: =(R79*$N$90) -> 
P92: =C19 -> 0 | Q92: =(Q80*$N$90) -> 0 | S92: =(S80*$N$90) ->  | T92: =(T80*$N$90) -> 
P93: =C20 -> 0 | Q93: 0 | S93: =(S81*$N$90) ->  | T93: =(T81*$N$90) -> 
Q94: 0 | R94: 0 | S94: =(S82*$N$90) -> 0 | T94: =(T82*$N$90) -> 0
Q95: 0 | R95: 0 | S95: =(S83*$N$90) -> 0 | T95: =(T83*$N$90) -> 0
Q96: 0 | R96: 0 | S96: =(S84*$N$90) -> 0 | T96: =(T84*$N$90) -> 0

Sheet nbr tours
C2: STRAT 1
E4: Nombre de tours par train de pneus | O4: menu
D6: Type de pneus | E6: Durée de vie ou pic performance | F6: Meilleur temps chrono | G6: Moins bon temps | H6: Temps moyen de réf. strat | L6: Ecart MT/MBT
D10: =chronos!$C$18 -> 0 | E10: ='Strat 1'!G14 -> 0 | F10: =chronos!E18 -> 00:00:00 | G10: =VLOOKUP('Strat 1'!G14,chronos!$AB$79:$AH$81,2,FALSE) -> 00:00:00 | H10: =VLOOKUP('Strat 1'!G14,chronos!$AB$84:$AH$86,2,FALSE) ->  | I10: =IFERROR(H10,0) -> 00:00:00 | L10: =G10-F10 -> 00:00:00
D11: =chronos!$C$19 -> 0 | E11: ='Strat 1'!K14 -> 0 | F11: =chronos!E19 -> 00:00:00 | G11: =VLOOKUP('Strat 1'!K14,chronos!$AB$79:$AH$81,3,FALSE) -> 00:00:00 | H11: =VLOOKUP('Strat 1'!K14,chronos!$AB$84:$AH$86,3,FALSE) ->  | I11: 00:00:00 | L11: 00:00:00
D12: =chronos!$C$20 -> 0 | E12: ='Strat 1'!O14 -> 0 | F12: =chronos!E20 -> 00:00:00 | G12: =VLOOKUP('Strat 1'!O14,chronos!$AB$79:$AH$81,4,FALSE) -> 00:00:00 | H12: =VLOOKUP('Strat 1'!O14,chronos!$AB$84:$AH$86,4,FALSE) ->  | I12: 00:00:00 | J12: =AVERAGEIF(I10:I15,"<>0") ->  | L12: 00:00:00
I14: 00:00:00
I15: 00:00:00
C98: STRAT 2
E100: Nombre de tours par train de pneus | O100: menu
D102: Type de pneus | E102: Durée de vie ou pic performance | F102: Meilleur temps chrono | G102: Moins bon temps | H102: Temps moyen de réf. strat | L102: Ecart MT/MBT
D106: =chronos!$C$18 -> 0 | E106: ='Strat 2'!G14 -> 0 | F106: =chronos!E18 -> 00:00:00 | G106: =VLOOKUP('Strat 2'!G14,chronos!$AB$79:$AH$81,2,FALSE) -> 00:00:00 | H106: =VLOOKUP('Strat 2'!G14,chronos!$AB$84:$AH$86,2,FALSE) ->  | I106: =IFERROR(H106,0) -> 00:00:00 | L106: =G106-F106 -> 00:00:00
D107: =chronos!$C$19 -> 0 | E107: ='Strat 2'!K14 -> 0 | F107: =chronos!E19 -> 00:00:00 | G107: =VLOOKUP('Strat 2'!K14,chronos!$AB$79:$AH$81,3,FALSE) -> 00:00:00 | H107: =VLOOKUP('Strat 2'!K14,chronos!$AB$84:$AH$86,3,FALSE) ->  | I107: 00:00:00 | L107: 00:00:00
D108: =chronos!$C$20 -> 0 | E108: ='Strat 2'!O14 -> 0 | F108: =chronos!E20 -> 00:00:00 | G108: =VLOOKUP('Strat 2'!O14,chronos!$AB$79:$AH$81,4,FALSE) -> 00:00:00 | H108: =VLOOKUP('Strat 2'!O14,chronos!$AB$84:$AH$86,4,FALSE) ->  | I108: 00:00:00 | J108: =AVERAGEIF(I106:I111,"<>0") ->  | L108: 00:00:00
C198: STRAT 3
E200: Nombre de tours par train de pneus | O200: menu
D202: Type de pneus | E202: Durée de vie ou pic performance | F202: Meilleur temps chrono | G202: Moins bon temps | H202: Temps moyen de réf. strat | L202: Ecart MT / MBT
D206: =chronos!$C$18 -> 0 | E206: ='strat 3'!G14 -> 0 | F206: =chronos!E18 -> 00:00:00 | G206: =VLOOKUP('strat 3'!G14,chronos!$AB$79:$AH$81,2,FALSE) -> 00:00:00 | H206: =VLOOKUP('strat 3'!G14,chronos!$AB$84:$AH$86,2,FALSE) ->  | I206: =IFERROR(H206,0) -> 00:00:00 | L206: =G206-F206 -> 00:00:00
D207: =chronos!$C$19 -> 0 | E207: ='strat 3'!K14 -> 0 | F207: =chronos!E19 -> 00:00:00 | G207: =VLOOKUP('strat 3'!K14,chronos!$AB$79:$AH$81,3,FALSE) -> 00:00:00 | H207: =VLOOKUP('strat 3'!K14,chronos!$AB$84:$AH$86,3,FALSE) ->  | I207: 00:00:00 | L207: 00:00:00
D208: =chronos!$C$20 -> 0 | E208: ='strat 3'!O14 -> 0 | F208: =chronos!E20 -> 00:00:00 | G208: =VLOOKUP('strat 3'!O14,chronos!$AB$79:$AH$81,4,FALSE) -> 00:00:00 | H208: =VLOOKUP('strat 3'!O14,chronos!$AB$84:$AH$86,4,FALSE) ->  | I208: 00:00:00 | J208: =AVERAGEIF(I206:I211,"<>0") ->  | L208: 00:00:00

Sheet ajust éco
C2: Ajustements autonomie et temps conduite éco
P4: Menu
B6: Réglages conduite éco | C6: Gain autonomie | I6: Dégradation temps
C7: Coeff. | D7: ='Strat 1'!M18 ->  | E7: ='Strat 1'!I18*'Strat 1'!K3 ->  | F7: Gain nbr tours | G7: L/100 | H7: réservoir | I7: Sec/Km | J7: pas à pas | K7: Sec/Km | L7: Sec/tour
B9: 0 | C9: 0 | D9: =(1*G9)/$E$7 ->  | E9: écart conso | F9: 0 | G9: ='Strat 1'!K18 -> 100 | H9: 100 | I9: 0 | J9: 0 | K9: 0 | L9: 0
B10: tr/mn 2/3 | C10: 4 | D10: =(1*G10)/$E$7 ->  | E10: =C10+$B$65 -> 4 | F10: =(H10*$A$11)/$H$9-$A$11 -> 0 | G10: =$G$9-E10 -> 96 | H10: =$H$9+E10 -> 104 | I10: =J10+($B$66/50) -> 0.01 | J10: =K10 -> 0.01 | K10: 0.01 | L10: =I10*$D$46 -> 
A11: ='Strat 1'!I18 -> 0 | B11: tr/mn 1/2 | C11: 8 | E11: 8 | F11: 0 | G11: =$G$9-E11 -> 92 | H11: =$H$9+E11 -> 108 | I11: =J11+($B$66/50) -> 0.035 | J11: =K11+K10 -> 0.035 | K11: 0.025
B12: tr/mn 1/3 | C12: 16 | E12: 16 | F12: 0 | G12: 84 | H12: 116 | I12: 0.1 | J12: =K12+K11 -> 0.1 | K12: 0.075
B13: 2 | C13: 20 | E13: 20 | F13: 0 | G13: 80 | H13: 120 | I13: 0.175 | J13: =K13+K12 -> 0.175 | K13: 0.1 | O13: Réinitialiser :
B14: 3 | C14: 30 | E14: 30 | F14: 0 | G14: 70 | H14: 130 | I14: 0.25 | J14: =K13+K14 -> 0.25 | K14: 0.15
B15: 4 | C15: 45 | E15: 45 | F15: 0 | G15: 55 | H15: 145 | I15: 0.35 | J15: 0.35 | K15: 0.2
B16: 5 | C16: 60 | E16: 60 | F16: 0 | G16: 40 | H16: 160 | I16: 0.45 | J16: 0.45 | K16: 0.25
B17: 6 | C17: 75 | E17: 75 | F17: 0 | G17: 25 | H17: 175 | I17: 0.55 | J17: 0.55 | K17: 0.3
D18: litre au km | E18: éco nbr litres
D19: formule strat 1
D20: E42
B25: Pour augmenter l'autonomie : jouer sur le curseur ou saisir un chiffre supérieur à celui existant dans la colonne "Coeff gain autonomie"
B26: Pour réduire l'autonomie : saisir un chiffre inferieur à celui existant dans la colonne "Coeff gain autonomie"
B28: Pour accroitre la perte de temps du à la réduction de la vitesse : jouer sur le curseur ou saisir un temps supérieur à celui existant dans la colonne "Coeff réduction de vitesse"
B29: Pour réduire la perte de temps du à la réduction de la vitesse : saisir un chiffre inferieur à celui existant, voir négatif ci nécessaire, dans la colonne "Coeff réduction de vitesse"
B31: NB) les ajustements réalisés sont communs aux 3 stratégies
D45: long circuit
D46: ='Strat 1'!K3 -> 
D47: conso 100 km
D48: ='Strat 1'!K18 -> 100
E49: 1
C53: Valeurs par défaut
B54: 0 | C54: 0 | I54: 0
B55: tr/mn 2/3 | C55: 4 | I55: 0 | K55: 0.01
B56: tr/mn 1/2 | C56: 8 | I56: 0.05 | K56: 0.025
B57: tr/mn 1/3 | C57: 16 | I57: 0.1 | K57: 0.075
B58: 2 | C58: 20 | I58: 0.3 | K58: 0.1
B59: 3 | C59: 30 | I59: 0.5 | K59: 0.15
B60: 4 | C60: 45 | I60: 0.65 | K60: 0.2
B61: 5 | C61: 60 | I61: 0.85 | K61: 0.25
B62: 6 | C62: 75 | I62: 1 | K62: 0.3
B65: 0
B66: 0

Sheet circuits
I2: 29 circuits, 85 pistes
I3: Circuits - Pistes | J3: Long (km)
I4: Alsace - Village | J4: =grille!L19 -> 5.423
I5: Alsace - Village II | J5: =grille!L20 -> 5.423
I13: Autodrome Lago Maggiore - GP | J13: =grille!L21 -> 5.809
I14: Autodrome Lago Maggiore - GP II | J14: =grille!L22 -> 5.809
I15: Autodrome Lago Maggiore - Centre | J15: =grille!L23 -> 1.706
I16: Autodrome Lago Maggiore - Centre II | J16: =grille!L24 -> 1.706
I17: Autodrome Lago Maggiore - Est | J17: =grille!L25 -> 3.643
I18: Autodrome Lago Maggiore - Est II | J18: =grille!L26 -> 3.643
I19: Autodrome Lago Maggiore - Ouest | J19: =grille!L27 -> 4.168
I20: Autodrome Lago Maggiore - Ouest II | J20: =grille!L28 -> 4.168
I22: Autódromo De Interlagos | J22: =grille!L29 -> 4.309
I32: Autodromo Nazionale Monza | J32: =grille!L30 -> 5.793
I33: Autodromo Nazionale Monza - sans chicane | J33: =grille!L31 -> 5.755
I41: Autopolis International Racing Course | J41: =grille!L32 -> 4.67
I42: Autopolis International Racing Course - Court | J42: =grille!L33 -> 3.02
I51: Blue Moon Bay Speedway | J51: =grille!L34 -> 3.2
I52: Blue Moon Bay Speedway II | J52: =grille!L35 -> 3.2
I53: Blue Moon Bay Speedway - Central A | J53: =grille!L36 -> 3.35
I54: Blue Moon Bay Speedway - Central A II | J54: =grille!L37 -> 3.35
I55: Blue Moon Bay Speedway - Central B | J55: =grille!L38 -> 2.86
I56: Blue Moon Bay Speedway - Central B II | J56: =grille!L39 -> 2.86
I60: Brands Hatch Grand Prix Circuit | J60: =grille!L40 -> 3.946
I61: Brands Hatch Indy Circuit | J61: =grille!L41 -> 1.929
I69: BB Raceway | J69: =grille!L42 -> 1.665
I70: BB Raceway II | J70: =grille!L43 -> 1.665
I78: Circuit de Barcelona-Catalunya version GP | J78: =grille!L44 -> 4.655
I87: Circuit de la Sarthe | J87: =grille!L45 -> 13.626
I88: Circuit de la Sarthe (Sans chicane) | J88: =grille!L46 -> 13.626
I96: Circuit de Sainte-Croix - A | J96: =grille!L47 -> 9.477
I97: Circuit de Sainte-Croix - A II | J97: =grille!L48 -> 9.477
I98: Circuit de Sainte-Croix - B | J98: =grille!L49 -> 7.062
I99: Circuit de Sainte-Croix - B II | J99: =grille!L50 -> 7.062
I100: Circuit de Sainte-Croix - C | J100: =grille!L51 -> 10.825
I101: Circuit de Sainte-Croix - C II | J101: =grille!L52 -> 10.825
I105: Circuit de Spa-Francorchamps | J105: =grille!L53 -> 7.004
I114: Colorado Springs - Lac | J114: =grille!L54 -> 2.99
I115: Colorado Springs - Lac II | J115: =grille!L55 -> 2.99
I123: Dragon Trail - Littoral | J123: =grille!L56 -> 5.209
I124: Dragon Trail - Littoral II | J124: =grille!L57 -> 5.209
I125: Dragon Trail - Jardins | J125: =grille!L58 -> 4.352
I126: Dragon Trail - Jardins II | J126: =grille!L59 -> 4.352
I133: Fishermans Ranch | J133: =grille!L60 -> 6.893
I134: Fishermans Ranch II | J134: =grille!L61 -> 6.893
I142: Fuji International Speedway | J142: =grille!L62 -> 4.563
I143: Fuji International Speedway - Court | J143: =grille!L63 -> 4.526
I151: Goodwood Motor Circuit | J151: =grille!L64 -> 3.809
I160: Kyoto Driving Park - Miyabi | J160: =grille!L65 -> 1.953
I161: Kyoto Driving Park - Yamagiwa | J161: =grille!L66 -> 4.912
I162: Kyoto Driving Park - Yamagiwa II | J162: =grille!L67 -> 4.912
I163: Kyoto Driving Park - Yamagiwa+Miyabi | J163: =grille!L68 -> 6.846
I164: Kyoto Driving Park - Yamagiwa+Miyabi II | J164: =grille!L69 -> 6.846
I169: Mount Panorama Motor Racing Circuit | J169: =grille!L70 -> 6.213
I178: Northern Isle Speedway | J178: =grille!L71 -> 0.9
I179: Northern Isle Speedway – Infield | J179: =grille!L72 -> 0.9
I187: 24 Heures du Nürburgring | J187: =grille!L73 -> 25.378
I188: Nürburgring GP | J188: =grille!L74 -> 5.148
I189: Nürburgring Nordschleife | J189: =grille!L75 -> 20.832
I190: Nürburgring Nordschleife - Tracé visiteurs | J190: =grille!L76 -> 20.832
I196: Red Bull Ring | J196: =grille!L77 -> 4.318
I197: Red Bull Ring - Court | J197: =grille!L78 -> 2.336
I205: Sardegna - Éoliennes | J205: =grille!L79 -> 3.31
I206: Sardegna - Éoliennes II | J206: =grille!L80 -> 3.31
I207: Sardegna - Piste A | J207: =grille!L81 -> 5.113
I208: Sardegna - Piste A II | J208: =grille!L82 -> 5.113
I209: Sardegna - Piste B | J209: =grille!L83 -> 3.893
I210: Sardegna - Piste B II | J210: =grille!L84 -> 3.893
I211: Sardegna - Piste C | J211: =grille!L85 -> 2.661
I212: Sardegna - Piste C II | J212: =grille!L86 -> 2.661
I214: Special Stage Route X | J214: =grille!L87 -> 30.283
I223: Suzuka Circuit | J223: =grille!L88 -> 5.808
I224: Suzuka Circuit - Course Est | J224: =grille!L89 -> 2.243
I232: Tokyo Expressway - Boucle intérieure centrale | J232: =grille!L90 -> 4.369
I233: Tokyo Expressway - Boucle extérieure centrale | J233: =grille!L91 -> 4.405
I234: Tokyo Expressway - Boucle intérieure Est | J234: =grille!L92 -> 7.192
I235: Tokyo Expressway - Boucle extérieure Est | J235: =grille!L93 -> 7.301
I236: Tokyo Expressway - Boucle extérieure Sud | J236: =grille!L94 -> 6.56
I237: Tokyo Expressway - Boucle intérieure Sud | J237: =grille!L95 -> 5.201
I241: Tsukuba Circuit | J241: =grille!L96 -> 2.045
I250: WeatherTech Raceway Laguna Seca | J250: =grille!L97 -> 3.6
I259: Willow Springs - Big Willow | J259: =grille!L98 -> 3.951
I260: Willow Springs - Horse Thief Mile | J260: =grille!L99 -> 1.624
I261: Willow Springs - Horse Thief Mile II | J261: =grille!L100 -> 1.624
I262: Willow Springs - Streets of Willow Springs | J262: =grille!L101 -> 2.675
I263: Willow Springs- Streets of Willow Springs II | J263: =grille!L102 -> 2.675

Sheet voitures
A7: N° | B7: Catégories | C7: Marques | D7: Modèles
A8: 1 | B8: N 300 | C8: Ford | D8: FOCUS ST 2015
A9: 2 | B9: N 400 | C9: Ford | D9: MUSTANG GT PREMIUM FASTBACK 2015
A10: 3 | B10: Gr.4 | C10: Ford | D10: MUSTANG GR.4
A11: 4 | B11: Gr.3 | C11: Ford | D11: MUSTANG GR.3
A12: 5 | B12: Gr.B | C12: Ford | D12: MUSTANG GR.B RALLY CAR
A13: 6 | B13: Gr.B | C13: Ford | D13: FOCUS GR.B RALLY CAR
A14: 7 | B14: N 500 | C14: Chevrolet | D14: CAMARO SS 2016
A15: 8 | B15: N 500 | C15: Chevrolet | D15: CORVETTE STINGRAY 2014
A16: 9 | B16: Gr.4 | C16: Chevrolet | D16: CORVETTE C7 GR.4
A17: 10 | B17: Gr.3 | C17: Chevrolet | D17: CORVETTE C7 GR.3
A18: 11 | B18: N 700 | C18: Dodge | D18: DODGE CHARGER SRT HELLCAT 2015
A19: 12 | B19: N 600 | C19: Dodge | D19: VIPER GTS 2013
A20: 13 | B20: Gr.4 | C20: Dodge | D20: VIPER GR.4
A21: 14 | B21: Gr.3 | C21: Dodge | D21: VIPER SRT GT3-R 2015
A22: 15 | B22: Gr.1 | C22: Dodge | D22: SRT TOMAHAWK VISION GRAN TURISMO GR.1
A23: 16 | B23: Gr.X | C23: Dodge | D23: SRT TOMAHAWK VISION GRAN TURISMO TECHNOLOGY
A24: 17 | B24: Gr.X | C24: Dodge | D24: SRT TOMAHAWK VISION GRAN TURISMO RACING
A25: 18 | B25: Gr.X | C25: Dodge | D25: SRT TOMAHAWK VISION GRAN TURISMO STREET
A26: 19 | B26: Gr.X | C26: Infiniti | D26: INFINITI CONCEPT VISION GRAN TURISMO
A27: 20 | B27: Gr.X | C27: Chaparral | D27: CHEVROLET CHAPARRAL 2X VISION GRAN TURISMO
A28: 21 | B28: Gr.X | C28: Fittipaldi Motors | D28: FITTIPALDI EF7 VISION GRAN TURISMO BY PININFARINA
A29: 22 | B29: N 600 | C29: Jaguar | D29: F-TYPE R COUPE 2014
A30: 23 | B30: Gr.4 | C30: Jaguar | D30: F-TYPE GR.4
A31: 24 | B31: Gr.3 | C31: Jaguar | D31: F-TYPE GR.3
A32: 25 | B32: N 400 | C32: Aston Martin | D32: V8 VANTAGE S 2015
A33: 26 | B33: Gr.4 | C33: Aston Martin | D33: VANTAGE GR.4
A34: 27 | B34: Gr.3 | C34: Aston Martin | D34: VI2 VANTAGE GT3 2012
A35: 28 | B35: N 800 | C35: Aston Martin | D35: ONE-77 2011
A36: 29 | B36: N 800 | C36: Aston Martin | D36: ASTON MARTIN VULCAN 2016
A37: 30 | B37: Gr.X | C37: Aston Martin | D37: ASTON MARTIN DP-100 VISION GRAN TURISMO
A38: 31 | B38: N 600 | C38: McLaren | D38: MP4-12C 2010
A39: 32 | B39: N 700 | C39: McLaren | D39: 650S COUPE 2014
A40: 33 | B40: Gr.4 | C40: McLaren | D40: 650S GR.4
A41: 34 | B41: Gr.3 | C41: McLaren | D41: 650S GT3 2015
A42: 35 | B42: Gr.1 | C42: McLaren | D42: MCLAREN ULTIMATE VISION GRAN TURISMO GR.1
A43: 36 | B43: Gr.X | C43: McLaren | D43: MCLAREN ULTIMATE VISION GRAN TURISMO
A44: 37 | B44: N 200 | C44: Volkswagen | D44: GOLF VII GTI 2014
A45: 38 | B45: Gr.4 | C45: Volkswagen | D45: SCIROCCO GR.4
A46: 39 | B46: Gr.3 | C46: Volkswagen | D46: GTI VISION GRAN TURISMO GR.3
A47: 40 | B47: Gr.3 | C47: Volkswagen | D47: BEETLE GR.3
A48: 41 | B48: Gr.X | C48: Volkswagen | D48: GTI ROADSTER VISION GRAN TURISMO
A49: 42 | B49: Gr.X | C49: Volkswagen | D49: GTI SUPERSPORT VISION GRAN TURISMO
A50: 43 | B50: N 400 | C50: Mercedes-Benz | D50: A 45 AMG 4MATIC 2013
A51: 44 | B51: N 500 | C51: Mercedes-Benz | D51: MERCEDES-AMG GTS 2015
A52: 45 | B52: N 600 | C52: Mercedes-Benz | D52: SLS AMG 2010
A53: 46 | B53: Gr.4 | C53: Mercedes-Benz | D53: SLS AMG GR.4
A54: 47 | B54: Gr.3 | C54: Mercedes-Benz | D54: SLS AMG GT3 2011
A55: 48 | B55: Gr.3 | C55: Mercedes-Benz | D55: MERCEDES-AMG GT3 AMG-TEAM HTP-MOTORSPORT 2016
A56: 49 | B56: Gr.X | C56: Mercedes-Benz | D56: AMG VISION GRAN TURISMO
A57: 50 | B57: Gr.X | C57: Mercedes-Benz | D57: AMG VISION GRAN TURISMO RACING SERIES
A58: 51 | B58: Gr.X | C58: BMW | D58: i3 2015
A59: 52 | B59: N 400 | C59: BMW | D59: BMW M4 COUPE 2014
A60: 53 | B60: Gr.4 | C60: BMW | D60: BMW M4 GR.4
A61: 54 | B61: Gr.3 | C61: BMW | D61: BMW Z4 GT3 2011
A62: 55 | B62: Gr.3 | C62: BMW | D62: BMW M6 GT3 WALKENHORST MOTORSPORT 2016
A63: 56 | B63: Gr.3 | C63: BMW | D63: BMW M6 GT3 M POWER LIVERY 2016
A64: 57 | B64: Gr.X | C64: BMW | D64: BMW VISION GRAN TURISMO
A65: 58 | B65: N 300 | C65: Audi | D65: TTS COUPE 2014
A66: 59 | B66: Gr.4 | C66: Audi | D66: TT CUP 2016
A67: 60 | B67: Gr.B | C67: Audi | D67: AUDI SPORT QUATTRO S1 PIKES PEAK 1987
A68: 61 | B68: Gr.3 | C68: Audi | D68: R8 LMS AUDI SPORT TEAM WRT 2015
A69: 62 | B69: Gr.1 | C69: Audi | D69: AUDI R18 TDI AUDI SPORT TEAM JOEST 2011
A70: 63 | B70: Gr.X | C70: MINI | D70: MINI CLUBMAN VISION GRAN TURISMO
A71: 64 | B71: N 500 | C71: Porsche | D71: 911 GT3 RS 2016
A72: 65 | B72: Gr.4 | C72: Porsche | D72: CAYMAN GT4 CLUBSPORT 2016
A73: 66 | B73: Gr.3 | C73: Porsche | D73: 911 RSR 2017
A74: 67 | B74: Gr.1 | C74: Porsche | D74: PORSCHE 919 HYBRID PORSCHE TEAM 2016
A75: 68 | B75: N 200 | C75: Renault Sport | D75: CLIO R.S. 220 EDC TROPHY 2015
A76: 69 | B76: N 300 | C76: Renault Sport | D76: MEGANE R.S. TROPHY 2011
A77: 70 | B77: Gr.4 | C77: Renault Sport | D77: MEGANE GR.4
A78: 71 | B78: Gr.3 | C78: Renault Sport | D78: R.S.01 GT3 2016
A79: 72 | B79: Gr.X | C79: Renault Sport | D79: R.S.01 2016
A80: 73 | B80: N 200 | C80: Peugeot | D80: 208 GTI BY PEUGEOT SPORT 2014
A81: 74 | B81: N 200 | C81: Peugeot | D81: RCZ GT LINE 2015
A82: 75 | B82: Gr.4 | C82: Peugeot | D82: RCZ GR.4
A83: 76 | B83: Gr.3 | C83: Peugeot | D83: PEUGEOT VISION GRAN TURISMO GR.3
A84: 77 | B84: Gr.3 | C84: Peugeot | D84: RCZ GR.3
A85: 78 | B85: Gr.B | C85: Peugeot | D85: RCZ GR.B RALLY CAR
A86: 79 | B86: Gr.1 | C86: Peugeot | D86: PEUGEOT 908 HDI FAP TEAM PEUGEOT TOTAL 2010
A87: 80 | B87: Gr.1 | C87: Peugeot | D87: PEUGEOT L750R HYBRID VISION GRAN TURISMO 2017
A88: 81 | B88: Gr.X | C88: Peugeot | D88: PEUGEOT VISION GRAN TURISMO
A89: 82 | B89: Gr.X | C89: Peugeot | D89: PEUGEOT L500R HYBRID VISION GRAN TURISMO 2017
A90: 83 | B90: N 200 | C90: Citroen | D90: DS3 RACING 2011
A91: 84 | B91: N 500 | C91: Citroen | D91: GT BY CITROEN ROAD CAR
A92: 85 | B92: Gr.4 | C92: Citroen | D92: GT BY CITROEN GR.4
A93: 86 | B93: Gr.3 | C93: Citroen | D93: GT BY CITROEN RACE CAR GR.3
A94: 87 | B94: Gr.1 | C94: Alpine | D94: ALPINE VISION GRAN TURISMO 2017
A95: 88 | B95: Gr.X | C95: Alpine | D95: ALPINE VISION GRAN TURISMO
A96: 89 | B96: Gr.X | C96: Alpine | D96: ALPINE VISION GRAN TURISMO RACE MODE
A97: 90 | B97: Gr.4 | C97: Bugatti | D97: VEYRON GR.4
A98: 91 | B98: Gr.1 | C98: Bugatti | D98: BUGATTI VISION GRAN TURISMO GR.1
A99: 92 | B99: N1000 | C99: Bugatti | D99: VEYRON 16.4 2013
A100: 93 | B100: Gr.X | C100: Bugatti | D100: BUGATTI VISION GRAN TURISMO
A101: 94 | B101: N 200 | C101: Alfa Romeo | D101: MITO 1.4 T SPORT 2009
A102: 95 | B102: N 200 | C102: Alfa Romeo | D102: 4C LAUNCH EDITION 2014
A103: 96 | B103: Gr.4 | C103: Alfa Romeo | D103: 4C GR.4
A104: 97 | B104: Gr.3 | C104: Alfa Romeo | D104: 4C GR.3
A105: 98 | B105: N 600 | C105: Ferrari | D105: 458 ITALIA 2009
A106: 99 | B106: Gr.4 | C106: Ferrari | D106: 458 ITALIA GR.4
A107: 100 | B107: Gr.3 | C107: Ferrari | D107: 458 ITALIA GT3 2013
A108: 101 | B108: N1000 | C108: Ferrari | D108: LA FERRARI 2013
A109: 102 | B109: N 600 | C109: Lamborghini | D109: HURACAN LP 610-4 2015
A110: 103 | B110: Gr.4 | C110: Lamborghini | D110: HURACAN GR.4
A111: 104 | B111: Gr.3 | C111: Lamborghini | D111: HURACAN GT3 2015
A112: 105 | B112: N 800 | C112: Lamborghini | D112: VENENO 2014
A113: 106 | B113: N 200 | C113: Toyota | D113: 86 GT 2015
A114: 107 | B114: N 100 | C114: Toyota | D114: S-FR 2015
A115: 108 | B115: N 200 | C115: Toyota | D115: 86 GRMN 2016
A116: 109 | B116: N 400 | C116: Toyota | D116: S-FR RACING CONCEPT 2016
A117: 110 | B117: Gr.4 | C117: Toyota | D117: 86 GR.4
A118: 111 | B118: Gr.3 | C118: Toyota | D118: FT-1 VISION GRAN TURISMO GR.3
A119: 112 | B119: Gr.B | C119: Toyota | D119: 86 GR.B RALLY CAR
A120: 113 | B120: Gr.1 | C120: Toyota | D120: TS030 HYBRID 2012
A121: 114 | B121: Gr.1 | C121: Toyota | D121: TS050 HYBRID TOYOTA GAZOO RACING 2016
A122: 115 | B122: Gr.X | C122: Toyota | D122: FT-1 VISION GRAN TURISMO
A123: 116 | B123: N 600 | C123: Nissan | D123: GT-R PREMIUM EDITION 2017
A124: 117 | B124: Gr.4 | C124: Nissan | D124: GT-R GR.4
A125: 118 | B125: Gr.3 | C125: Nissan | D125: GT-R NISMO GT3 N24 SCHULZE MOTORSPORT 2013
A126: 119 | B126: Gr.B | C126: Nissan | D126: GT-R GR.B RALLY CAR
A127: 120 | B127: Gr.1 | C127: Nissan | D127: GT-R LM NISMO 2015
A128: 121 | B128: Gr.X | C128: Nissan | D128: NISSAN CONCEPT 2020 VISION GRAN TURISMO
A129: 122 | B129: N 300 | C129: Honda | D129: CIVIC TYPER 2015
A130: 123 | B130: Gr.X | C130: Honda | D130: HONDA PROJECT 2&4 POWERED BY RC213V
A131: 124 | B131: N 600 | C131: Honda | D131: NSX 2017
A132: 125 | B132: Gr.4 | C132: Honda | D132: NSX GR.4
A133: 126 | B133: Gr.3 | C133: Honda | D133: NSX GR.3
A134: 127 | B134: Gr.B | C134: Honda | D134: NSX GR.B RALLY CAR
A135: 128 | B135: Gr.X | C135: Honda | D135: HONDA SPORTS VISION GRAN TURISMO
A136: 129 | B136: N 100 | C136: Mazda | D136: ROADSTER S 2015
A137: 130 | B137: N 200 | C137: Mazda | D137: ATENZA SEDAN XD L PACKAGE 2015
A138: 131 | B138: Gr.4 | C138: Mazda | D138: ATENZA GR.4
A139: 132 | B139: Gr.3 | C139: Mazda | D139: ATENZA GR.3
A140: 133 | B140: Gr.1 | C140: Mazda | D140: LM55 VISION GRAN TURISMO GR.1
A141: 134 | B141: Gr.X | C141: Mazda | D141: LM55 VISION GRAN TURISMO
A142: 135 | B142: N 300 | C142: Subaru | D142: WRX STI TYPES 2014
A143: 136 | B143: Gr.4 | C143: Subaru | D143: WRX GR.4
A144: 137 | B144: Gr.3 | C144: Subaru | D144: WRX GR.3
A145: 138 | B145: Gr.B | C145: Subaru | D145: WRX GR.B RALLY CAR
A146: 139 | B146: Gr.X | C146: Subaru | D146: VIZIV GT VISION GRAN TURISMO
A147: 140 | B147: N 300 | C147: Mitsubishi | D147: LANCER EVOLUTION FINAL EDITION 2015
A148: 141 | B148: Gr.4 | C148: Mitsubishi | D148: LANCER EVOLUTION FINAL EDITION GR.4
A149: 142 | B149: Gr.3 | C149: Mitsubishi | D149: LANCER EVOLUTION FINAL EDITION GR.3
A150: 143 | B150: Gr.B | C150: Mitsubishi | D150: LANCER EVOLUTION FINAL EDITION GR.B RALLY CAR
A151: 144 | B151: Gr.X | C151: Mitsubishi | D151: CONCEPT XR-PHEV EVOLUTION VISION GRAN TURISMO
A152: 145 | B152: Gr.X | C152: Daihatsu | D152: DAIHATSU COPEN RJ VISION GRAN TURISMO
A153: 146 | B153: N 500 | C153: Lexus | D153: RCF 2014
A154: 147 | B154: N 500 | C154: Lexus | D154: LC500 2017
A155: 148 | B155: Gr.4 | C155: Lexus | D155: RCF GR.4
A156: 149 | B156: Gr.3 | C156: Lexus | D156: RCF GT3 PROTOTYPE EMIL FREY RACING 2016
A157: 150 | B157: Gr.X | C157: Lexus | D157: LF-LC GT VISION GRAN TURISMO
A158: 151 | B158: N 300 | C158: Hyundai | D158: GENESIS COUPE 3.8 TRACK 2013
A159: 152 | B159: Gr.4 | C159: Hyundai | D159: GENESIS GR.4
A160: 153 | B160: Gr.3 | C160: Hyundai | D160: GENESIS GR.3
A161: 154 | B161: Gr.B | C161: Hyundai | D161: GENESIS GR.B RALLY CAR
A162: 155 | B162: Gr.1 | C162: Hyundai | D162: HYUNDAI N 2025 VISION GRAN TURISMO GR.1
A163: 156 | B163: Gr.X | C163: Hyundai | D163: HYUNDAI N 2025 VISION GRAN TURISMO
A164: 157 | B164: N 500 | C164: Alfa Romeo | D164: 4C Gr.3 Road Car
A165: 158 | B165: Gr.X | C165: BMW | D165: BMW M4 Safety Car
A166: 159 | B166: N 500 | C166: Chevrolet | D166: CORVETTE C7 Gr.3 ROAD CAR
A167: 160 | B167: N 500 | C167: Ford | D167: MUSTANG Gr.3 ROAD CAR
A168: 161 | B168: Gr.X | C168: Gran Turismo | D168: Gran Turismo Racing Kart 125 Shifter
A169: 162 | B169: N 500 | C169: Mazda | D169: ATENZA Gr.3 ROAD CAR
A170: 163 | B170: Gr.X | C170: Mercedes-Benz | D170: MERCEDES-AMG GT SAFETY CAR
A171: 164 | B171: N 500 | C171: Mitsubishi | D171: LANCER EVOLUTION FINAL EDITION GR.B ROAD CAR
A172: 165 | B172: Gr.X | C172: Nissan | D172: GT-R SAFETY CAR
A173: 166 | B173: N 500 | C173: Subaru | D173: WRX GR.B ROAD CAR
A174: 167 | B174: N 500 | C174: Peugeot | D174: RCZ Gr.3 Road Car (N500)
A175: 168 | B175: Gr.1 | C175: Audi | D175: R18 TDI Le Mans 2011
A176: 169 | B176: Gr.X | C176: Zagato | D176: IsoRivolta Zagato Vision Gran Turismo
A177: 170 | B177: Gr.1 | C177: Audi | D177: R18 Audi Sport Team Joest 2016
A178: 171 | B178: N 500 | C178: Shelby | D178: Cobra 427 1966
A179: 172 | B179: N 400 | C179: Ford | D179: F-150 SVT RAPTOR 2011
A180: 173 | B180: N 300 | C180: Chevrolet | D180: CORVETTE STINGRAY CONVERTIBLE 1969
A181: 174 | B181: N 300 | C181: KTM | D181: X-BOW R 2012
A182: 175 | B182: N 400 | C182: Lamborghini | D182: COUNTACH LP400 1974
A183: 176 | B183: N 500 | C183: Ferrari | D183: F40 1992
A184: 177 | B184: N 700 | C184: Ferrari | D184: ENZO FERRARI 2002
A185: 178 | B185: N 100 | C185: Volkswagen | D185: SAMBABUS TYP2 1962
A186: 179 | B186: N 300 | C186: Mazda | D186: RX-7 SPIRIT R TYPE A 2002
A187: 180 | B187: N 300 | C187: Nissan | D187: SKYLINE GT-R V-SPEC II 1994
A188: 181 | B188: N 300 | C188: Nissan | D188: SKYLINE GT-R V-SPEC II NUR 2002
A189: 182 | B189: N 100 | C189: Suzuki | D189: SWIFT SPORT 2007
A190: 183 | B190: N 700 | C190: Gran Turismo | D190: CHRIS HOLSTROM CONCEPTS 1967 CHEVY NOVA
A191: 184 | B191: N 500 | C191: Dodge | D191: VIPER GTS 2002
A192: 185 | B192: Gr.X | C192: Ferrari | D192: 330 P4 1967
A193: 186 | B193: N 400 | C193: Ferrari | D193: 512 BB 1976
A194: 187 | B194: N 600 | C194: Ford | D194: FORD GT 2006
A195: 188 | B195: Gr.X | C195: Jaguar | D195: XJ13 1966
A196: 189 | B196: N 600 | C196: Lamborghini | D196: DIABLO GT 2000
A197: 190 | B197: N 600 | C197: McLaren | D197: MCLAREN F1 1994
A198: 191 | B198: N 200 | C198: Toyota | D198: 2000GT 1967
A199: 192 | B199: Gr.X | C199: Toyota | D199: FT-1 2014
A200: 193 | B200: N 300 | C200: Toyota | D200: SUPRA RZ 1997
A201: 194 | B201: N 300 | C201: Alpine | D201: A110 PREMIERE EDITION 2017
A202: 195 | B202: N 100 | C202: Alpine | D202: A110 1600S 1972
A203: 196 | B203: N 400 | C203: Audi | D203: R8 4.2 FSI R TRONIC 2007
A204: 197 | B204: N 300 | C204: De Tomaso | D204: PANTERA 1971
A205: 198 | B205: N 400 | C205: Dodge | D205: CHALLENGER R/T 1970
A206: 199 | B206: N 300 | C206: Ford | D206: MUSTANG MACH 1 1971
... 139 more rows

Sheet Transmissions
B2: Les différents types de transmission
B4: PROPULSION
B6: RR | F6: FR | J6: MR | N6: RR : Très rares dans GTS, ces voitures ont à la fois un moteur et des roues motrices à l'arrière. Leur conduite n'est pas des plus évidentes et demande un temps d'adaptation.
N9: FR : Le moteur de ces voitures, appelées des propulsions, est situé à l'avant et ce sont les roues de derrière qui sont motrices. Ces voitures ont généralement une très bonne accélération et une vitesse de pointe très élevée…
N15: MR : Le moteur est au centre de la voiture et les roues arrière sont motrices. La plupart des F1 de GTS sont équipées ainsi. L'emplacement du moteur permet une excellente répartition de poids dans la voiture. De plus, le fait de ne pas avoir de moteur devant permet de modeler un profil aérodynamique à la voiture.
B17: Moteur à l'arrière | F17: Moteur à l'avant | J17: Moteur central
B18: (conduite difficile) | J18: Bonne répartition du poids
B21: TRACTION
B23: FF | N23: FF : Moteur et roues motrices à l'avant. Ces voitures sont sans doute les plus lentes. Ce sont aussi les plus courantes dans la vie de tous les jours. Le poids étant concentré au dessus des roues motrices, cela accentue la traction. Ce type de transmission est utilisé pour les rallyes car il est très stable.
D25: Moteur à l'avant
D26: (véh. Léger)
D27: Bonne motricitée
D28: Usure rapide des pneus AV
B35: 4 ROUES MOTRICES
B37: 4WD | F37: 4RM | J37: AWD | N37: 4WD; 4RM; AWD : Habituellement, le moteur de ce type de voiture est monté vers l'avant, mais il se peut aussi que dans de rares cas, il soit monté au centre, voire à l'arrière de la voiture. Comme le nom l'indique, les roues de ces voitures sont motrices. Il en résulte une meilleure tenue de route et une bonne traction (la plupart des voitures de Rallye sont d'ailleurs équipées de la sorte). Cependant, ces voitures sont plus lourdes à cause justement du poids de l'équipement supplémentaire. Elles demandent aussi une conduite plus technique.
D40: Moteur à l'avant
H41: Moteur central
L42: Moteur à l'arrière

Sheet grille
A3: nbrtours | B3: pneu | C3: pneu1 | D3: usure | E3: conso | F3: météo | G3: fuel | H3: éco2 | I3: pneu2 | J3: frein | N3: pneu3
A4: =chronos!G12 -> 0 | B4: S soft | C4: S soft | D4: X1 | E4: X1 | F4: beau temps | G4: 0 | H4: 0 | I4: libre | J4: 5 | N4: ='Strat 1'!G11 -> 0
A5: =chronos!J12 -> 0 | B5: soft | C5: soft | D5: X2 | E5: X2 | F5: ensoleillé | G5: 0.5 | H5: tr/mn 2/3 | I5: obligatoire | J5: 4 | N5: ='Strat 1'!K11 -> 0
A6: =chronos!M12 -> 0 | B6: médium | C6: médium | D6: X3 | E6: X3 | F6: nuageux | G6: 1 | H6: tr/mn 1/2 | J6: 3 | N6: ='Strat 1'!O11 -> 0
B7: hard | C7: hard | D7: X4 | E7: X4 | F7: tombé nuit | G7: 1.5 | H7: tr/mn 1/3 | J7: 2
B8: sans | C8: inter | D8: X5 | E8: X5 | F8: nuit | G8: 2 | H8: 2 | J8: 1
B9: inter | C9: pluie | D9: X6 | E9: X6 | F9: levé du jour | G9: 3 | H9: 3 | J9: 0
B10: pluie | D10: X7 | E10: X7 | F10: humide | G10: 4 | H10: 4 | J10: -1
D11: X8 | E11: X8 | F11: pluvieux | G11: 5 | H11: 5 | J11: -2
D12: X9 | E12: X9 | F12: pluie | G12: 6 | H12: 6 | J12: -3
D13: X10 | E13: X10 | F13: x | J13: -4
D14: X11 | E14: X11 | J14: -5
D15: X12 | E15: X12
D16: X13 | E16: X13
D17: X14 | E17: X14
K18: circuits | L18: distance | M18: corner
K19: Alsace - Village | L19: 5.423 | M19: 17
K20: Alsace - Village II | L20: 5.423 | M20: 17
K21: Autodrome Lago Maggiore - GP | L21: 5.809 | M21: 17
K22: Autodrome Lago Maggiore - GP II | L22: 5.809 | M22: 17
K23: Autodrome Lago Maggiore - Centre | L23: 1.706 | M23: 9
K24: Autodrome Lago Maggiore - Centre II | L24: 1.706 | M24: 9
K25: Autodrome Lago Maggiore - Est | L25: 3.643 | M25: 13
A26: edp | B26: dépaart | C26: dégat | D26: pénalité | K26: Autodrome Lago Maggiore - Est II | L26: 3.643 | M26: 13
A27: EDP sans | B27: départ grille | C27: dégât sans | D27: sans | K27: Autodrome Lago Maggiore - Ouest | L27: 4.168 | M27: 13
A28: EDP avec | B28: départ lancé | C28: dégât faible | D28: faible | K28: Autodrome Lago Maggiore - Ouest II | L28: 4.168 | M28: 13
C29: dégât fort | D29: forte | K29: Autódromo De Interlagos | L29: 4.309 | M29: 15
K30: Autodromo Nazionale Monza | L30: 5.793 | M30: 11
K31: Autodromo Nazionale Monza - sans chicane | L31: 5.755 | M31: 9
K32: Autopolis International Racing Course | L32: 4.67 | M32: 19
K33: Autopolis International Racing Course - Court | L33: 3.02 | M33: 12
K34: Blue Moon Bay Speedway | L34: 3.2 | M34: 3
K35: Blue Moon Bay Speedway II | L35: 3.2 | M35: 3
K36: Blue Moon Bay Speedway - Central A | L36: 3.35 | M36: 10
K37: Blue Moon Bay Speedway - Central A II | L37: 3.35 | M37: 10
K38: Blue Moon Bay Speedway - Central B | L38: 2.86 | M38: 7
K39: Blue Moon Bay Speedway - Central B II | L39: 2.86 | M39: 7
K40: Brands Hatch Grand Prix Circuit | L40: 3.946 | M40: 9
K41: Brands Hatch Indy Circuit | L41: 1.929 | M41: 6
K42: BB Raceway | L42: 1.665 | M42: 4
K43: BB Raceway II | L43: 1.665 | M43: 4
K44: Circuit de Barcelona-Catalunya version GP | L44: 4.655 | M44: 13
K45: Circuit de la Sarthe | L45: 13.626 | M45: 38
K46: Circuit de la Sarthe (Sans chicane) | L46: 13.626 | M46: 36
K47: Circuit de Sainte-Croix - A | L47: 9.477 | M47: 20
K48: Circuit de Sainte-Croix - A II | L48: 9.477 | M48: 20
K49: Circuit de Sainte-Croix - B | L49: 7.062 | M49: 16
K50: Circuit de Sainte-Croix - B II | L50: 7.062 | M50: 16
K51: Circuit de Sainte-Croix - C | L51: 10.825 | M51: 23
K52: Circuit de Sainte-Croix - C II | L52: 10.825 | M52: 26
K53: Circuit de Spa-Francorchamps | L53: 7.004 | M53: 20
K54: Colorado Springs - Lac | L54: 2.99 | M54: 15
K55: Colorado Springs - Lac II | L55: 2.99 | M55: 15
K56: Dragon Trail - Littoral | L56: 5.209 | M56: 17
K57: Dragon Trail - Littoral II | L57: 5.209 | M57: 17
K58: Dragon Trail - Jardins | L58: 4.352 | M58: 16
K59: Dragon Trail - Jardins II | L59: 4.352 | M59: 16
K60: Fishermans Ranch | L60: 6.893 | M60: 40
K61: Fishermans Ranch II | L61: 6.893 | M61: 40
K62: Fuji International Speedway | L62: 4.563 | M62: 16
K63: Fuji International Speedway - Court | L63: 4.526 | M63: 15
K64: Goodwood Motor Circuit | L64: 3.809 | M64: 7
K65: Kyoto Driving Park - Miyabi | L65: 1.953 | M65: 7
K66: Kyoto Driving Park - Yamagiwa | L66: 4.912 | M66: 15
K67: Kyoto Driving Park - Yamagiwa II | L67: 4.912 | M67: 15
K68: Kyoto Driving Park - Yamagiwa+Miyabi | L68: 6.846 | M68: 20
K69: Kyoto Driving Park - Yamagiwa+Miyabi II | L69: 6.846 | M69: 20
K70: Mount Panorama Motor Racing Circuit | L70: 6.213 | M70: 22
K71: Northern Isle Speedway | L71: 0.9 | M71: 2
K72: Northern Isle Speedway – Infield | L72: 0.9 | M72: 2
K73: Nürburgring 24 Heures | L73: 25.378 | M73: 170
K74: Nürburgring GP | L74: 5.148 | M74: 16
K75: Nürburgring Nordschleife | L75: 20.832 | M75: 154
K76: Nürburgring Nordschleife - Tracé visiteurs | L76: 20.832 | M76: 154
K77: Red Bull Ring | L77: 4.318 | M77: 10
K78: Red Bull Ring - Court | L78: 2.336 | M78: 6
K79: Sardegna - Éoliennes | L79: 3.31 | M79: 14
K80: Sardegna - Éoliennes II | L80: 3.31 | M80: 14
K81: Sardegna - Piste A | L81: 5.113 | M81: 15
K82: Sardegna - Piste A II | L82: 5.113 | M82: 15
K83: Sardegna - Piste B | L83: 3.893 | M83: 15
K84: Sardegna - Piste B II | L84: 3.893 | M84: 15
K85: Sardegna - Piste C | L85: 2.661 | M85: 15
K86: Sardegna - Piste C II | L86: 2.661 | M86: 15
K87: Special Stage Route X | L87: 30.283 | M87: 4
K88: Suzuka Circuit | L88: 5.808 | M88: 17
K89: Suzuka Circuit - Course Est | L89: 2.243 | M89: 6
K90: Tokyo Expressway - Boucle intérieure centrale | L90: 4.369 | M90: 12
K91: Tokyo Expressway - Boucle extérieure centrale | L91: 4.405 | M91: 12
K92: Tokyo Expressway - Boucle intérieure Est | L92: 7.192 | M92: 12
K93: Tokyo Expressway - Boucle extérieure Est | L93: 7.301 | M93: 12
K94: Tokyo Expressway - Boucle extérieure Sud | L94: 6.56 | M94: 16
K95: Tokyo Expressway - Boucle intérieure Sud | L95: 5.201 | M95: 17
K96: Tsukuba Circuit | L96: 2.045 | M96: 14
K97: WeatherTech Raceway Laguna Seca | L97: 3.6 | M97: 12
K98: Willow Springs - Big Willow | L98: 3.951 | M98: 9
K99: Willow Springs - Horse Thief Mile | L99: 1.624 | M99: 12
K100: Willow Springs - Horse Thief Mile II | L100: 1.624 | M100: 12
K101: Willow Springs - Streets of Willow Springs | L101: 2.675 | M101: 14
K102: Willow Springs - Streets of Willow Springs II | L102: 2.675 | M102: 14

Sheet grille2
B4: catégories | D4: Voitures
B5: GR1_ | D5: GR1
B6: GR2_ | D6: Alpine VGT 2017
B7: GR3_ | D7: Audi Audi VGT
B8: GR4_ | D8: Audi R18 (Audi Sport Team Joest) '16
B9: GRB | D9: Audi R18 TDI (Audi Sport Team Joest) '11
B10: GRX | D10: Audi R18 TDI (Le Mans 2011)
B11: N1000_ | D11: Bugatti VGT (Gr.1)
B12: N100_ | D12: Dodge SRT Tomahawk VGT (Gr.1)
B13: N200_ | D13: Hyundai HYUNDAI N 2025 VGT (Gr.1)
B14: N300_ | D14: Jaguar XJR-9 '88
B15: N400_ | D15: Mazda 787B '91
B16: N500_ | D16: Mazda LM55 VGT (Gr.1)
B17: N600_ | D17: McLaren Ultimate VGT (Gr.1)
B18: N700_ | D18: Mercedes-Benz Sauber Mercedes C9 '89
B19: N800_ | D19: Nissan GT-R LM NISMO '15
D20: Nissan R92CP '92
D21: Peugeot 908 HDi FAP - Team Peugeot Total '10
D22: Peugeot L750R HYbrid VGT 2017
D23: Porsche 919 Hybrid (Porsche Team) '16
D24: Porsche 962 C '88
D25: Toyota TS030 Hybrid '12
D26: Toyota TS050 - Hybrid (Toyota Gazoo Racing) '16
D28: GR2
D29: Honda ESPON NSX '08
D30: Honda RAYBRIG NSX CONCEPT-GT '16
D31: Lexus au TOM'S RC F '16
D32: Lexus PETRONAS TOM'S SC430 '08
D33: Nissan MOTUL AUTECH GT-R '16
D34: Nissan XANAVI NISMO GT-R '08
D36: GR3
D37: Alfa Romeo 4C Gr.3
D38: Aston Martin DBR9 GT1 '10
D39: Aston Martin V12 Vantage GT3 '12
D40: Audi R8 LMS (Audi Sport Team WRT) '15
D41: BMW M3 GT (BMW Motorsport) '11
D42: BMW M6 GT3 (Walkenhorst Motorsport) '16
D43: BMW M6 GT3 M Power Livery '16
D44: BMW Z4 GT3 '11
D45: Chevrolet Corvette C7 Gr.3
D46: Citroën GT by Citroën Race Car (Gr.3)
D47: Dodge Viper SRT GT3-R '15
D48: Ferrari 458 Italia GT3 '13
D49: Ford GT LM Spec II Test Car
D50: Ford Mustang Gr.3
D51: Honda NSX Gr.3
D52: Hyundai Genesis Gr.3
D53: Jaguar F-type Gr.3
D54: Lamborghini Huracàn GT3 '15
D55: Lexus RC F GT3 (Emil Frey Racing) '17
D56: Lexus RC F GT3 prototype (Emil Frey Racing) '16
D57: Mazda Atenza Gr.3
D58: Mazda RX-VISION GT3 CONCEPT
D59: McLaren 650S GT3 '15
D60: McLaren F1 GTR - BMW '95
D61: Mercedes-Benz -AMG GT GT3 '16
D62: Mercedes-Benz SLS AMG GT3 '11
D63: Mitsubishi Lancer Evolution Final Edition Gr.3
D64: Nissan GT-R NISMO GT3 N24 Schulze Motorsport '13
D65: Peugeot VGT (Gr.3)
D66: Peugeot RCZ Gr.3
D67: Porsche 911 RSR (991) '17
D68: Renault Sport R.S.01 GT3 '16
D69: Subaru WRX Gr.3
D70: Toyota FT-1 VGT (Gr.3)
D71: Toyota GR Supra Racing Concept '18
D72: Volkswagen Beetle Gr.3
D73: Volkswagen GTI VGT (Gr.3)
D75: GR4
D76: Alfa Romeo 4C Gr.4
D77: Aston Martin Vantage Gr.4
D78: Audi TT Cup '16
D79: BMW M4 Gr.4
D80: Bugatti Veyron Gr.4
D81: Chevrolet Corvette C7 Gr.4
D82: Citroën GT by Citroën Gr.4
D83: Dodge Viper Gr.4
D84: Ferrari 458 Italia Gr.4
D85: Ford Mustang Gr.4
D86: Honda NSX Gr.4
D87: Hyundai Genesis Gr.4
D88: Jaguar F-type Gr.4
D89: Lamborghini Huracàn Gr.4
D90: Lexus RC F Gr.4
D91: Mazda Atenza Gr.4
D92: McLaren 650S Gr.4
D93: Mercedes-Benz SLS AMG Gr.4
D94: Mitsubishi Lancer Evolution Final Edition Gr.4
D95: Nissan GT-R Gr.4
D96: Peugeot RCZ Gr.4
D97: Porsche Cayman GT4 Clubsport '16
D98: Renault Sport Mégane Gr.4
D99: Renault Sport Mégane Trophy '11
D100: Subaru WRX Gr.4
D101: Toyota 86 Gr.4
D102: Toyota GR Supra (Nürburgring '19 Livery)
D103: Volkswagen Scirocco Gr.4
D105: GRB
D106: Audi Sport quattro S1 Pikes Peak '87
D107: Ford Focus Gr.B Rally Car
D108: Ford Mustang Gr.B Rally Car
D109: Honda NSX Gr.B Rally Car
D110: Hyundai Genesis Gr.B Rally Car
D111: Mitsubishi Lancer Evolution Final Edition Gr.B Rally Car
D112: Nissan GT-R Gr.B Rally Car
D113: Peugeot RCZ Gr.B Rally Car
D114: Subaru WRX Gr.B Rally Car
D115: Toyota 86 Gr.B Rally Car
D117: GRX
D118: Alfa Romeo GIULIA TZ2 CN.AR750106 '65
D119: Alpine VGT
D120: Alpine VGT Race Mode
D121: Aston Martin DP-100 VGT
D122: Aston Martin DB3S CN.1 '53
D123: Audi e-tron VGT
D124: BMW VGT
D125: BMW i3 '15
D126: BMW M4 Safety Car
D127: Bugatti Bugatti VGT
D128: Chaparral Chevrolet Chaparral 2X VGT
D129: Chevrolet Corvette StingRay Racer Concept '59
D130: Daihatsu DAIHATSU COPEN RJ VGT
D131: Dodge Charger SRT Hellcat Safety Car
D132: Dodge SRT Tomahawk GTS-R VGT
D133: Dodge SRT Tomahawk S VGT
D134: Dodge SRT Tomahawk X VGT
D135: Ferrari 250 GTO CN.3729GT '62
D136: Ferrari 330 P4 '67
D137: Fittipaldi Motors Fittipaldi EF7 VGT
D138: Ford Mark IV Race Car '67
D139: Gran Turismo F1500T-A
D140: Gran Turismo Racing Kart 125 Shifter
D141: Gran Turismo Red Bull X2014 Junior
D142: Gran Turismo Red Bull X2014 Standard
D143: Gran Turismo Red Bull X2019 Competition
D144: Honda Sports VGT
D145: Honda Project 2&4 powered by RC213V
D146: Hyundai HYUNDAI N 2025 VGT
D147: Infiniti INFINITI CONCEPT VGT
D148: Jaguar D-type '54
D149: Jaguar VGT Coupé
D150: Jaguar XJ13
D151: Lexus LF-LC GT VGT
D152: Mazda LM55 VGT
D153: McLaren P1 GTR '16
D154: McLaren Ultimate VGT
D155: Mercedes-Benz 300 SEL 6.8 AMG '71
D156: Mercedes-Benz AMG VGT LH Edition
D157: Mercedes-Benz F1 W08 EQ Power+ (Color Variation) 2017
D158: Mercedes-Benz F1 W08 EQ Power+ 2017
D159: Mercedes-Benz-AMG GT Safety Car
D160: Mercedes-Benz -Benz AMG VGT
D161: Mercedes-Benz-Benz AMG VGT Racing Series
D162: Mini MINI Clubman VGT
D163: Mitsubishi Concept XR-PHEV EVOLUTION VGT
D164: Nissan GT-R Safety Car
D165: Nissan CONCEPT 2020 VGT
D166: Pagani Zonda R '09
D167: Peugeot L500R HYbrid VGT 2017
D168: Peugeot VGT
D169: Porsche Taycan Turbo S '19
D170: Renault R8 Gordini '66
D171: Renault Sport Mégane R.S. Trophy Safety Car
D172: Renault Sport R.S.01 '16
D173: Shelby Cobra Daytona Coupé '64
D174: Subaru Falken Tire / Turn 14 Distribution BRZ '17
D175: Subaru VIZIV GT VGT
D176: Subaru WRX STI Isle Of Man Time Attack Car '16
D177: Super Formula SF19 / Honda '19
D178: Super Formula SF19 / Toyota '19
D179: Tesla Motors Model S Signature Performance '12
D180: Toyota Crown Athlete G Safety Car
D181: Toyota FT-1
D182: Toyota FT-1 VGT
D183: Volkswagen GTI Roadster VGT
D184: Volkswagen GTI Supersport VGT
D185: Zagato IsoRivolta Zagato VGT
D187: N1000
D188: Bugatti Veyron 16.4 '13
D189: Ferrari LaFerrari '13
D191: N100
D192: Abarth 1500 Biposto Bertone B.A.T 1 '52
D193: Abarth 500 '09
D194: Alpine A110 1600S '72
D195: Daihatsu Copen '02
D196: Fiat 500 1.2 8V Lounge SS '08
D197: Fiat 500 F '68
D198: Honda Beat '91
D199: Honda Fit Hybrid '14
D200: Honda S660 '15
D201: Honda S800 '66
D202: Mazda Demio XD Touring '15
D203: Mazda Eunos Roadster (NA) '89
D204: Mazda Roadster S (ND) '15
D205: Mini Mini-Cooper 'S' '65
D206: Porsche 356 A/1500 GS GT Carrera Speedster '56
D207: Suzuki SWIFT Sport '07
D208: Toyota Corolla Levin 1600GT APEX (AE86) '83
D209: Toyota S-FR '15
D210: Toyota Sports 800 '65
... 154 more rows

Sheet PIT
C2: Aide au calcul des temps d'arrêts réels aux stands :
M4: Modifier les temps | Q4: Détail des temps d'arrêt et de ravitaillement
M7: t3 | N7: 30 | Q7: Temps démontes et montes des pneus : | S7: 4.5 | T7: (ce temps ne varie pas sur GT)
Q9: Temps réel changement pneus = (t2 - t1) | S9: =N11-N17 -> 5.6 | T9: (temps sec) | AF9: =S9+S11 -> 23
M11: t2 | N11: 12.6 | Q11: Temps de remplissage max du réservoir : | S11: =N7-N11 -> 17.4 | U11: =S11/U15 -> 0.174 | V11: / litre | AD11: Consommation : | AF11: =U15/S15 ->  | AG11: litres/tour
Q13: Temps de remplissage pour 1 tour : | S13: =AF11*U11 -> 
Q15: Capacité max réservoir : | S15: ='Strat 1'!I18 -> 0 | U15: ='Strat 1'!K18 -> 100
M17: t1 | N17: 7 | Q17: Vitesse de ravitaillement : | S17: =(1*U15)/S11 -> 5.747126437 | T17: litres/seconde
Q18: vous pouvez vérifier l'exactitude avec les infos course sur Gran Turismo
B21: t1 = temps de parcours voiture sur la piste entre l'entrée et la sortie des stands | M21: Pour obtenir t1 : | P21: relever le temps de passage de votre voiture entre l'entrée et la sortie des stands (en condition course)
B23: t2 = temps d'entrée au stand + temps PIT (changement pneus) + temps de sortie des stands | M23: Pour obtenir t2 : | P23: faire un arrêt avec seulement un changement de pneus et relever le temps indiqué sur l'écran en sortie de stand.
B25: t3 = temps d'entrée au stand + changement pneus + refuel complet + temps de sortie des stands | M25: Pour obtenir t3 : | P25: faire un arrêt avec changement de pneu et refuel complet. Relever le temps d'arrêt indiqué sur l'écran à la sortie
P26: du stand.
